{"text_format":"1","workbook":"xlsx","n_sheets":2,"sheets":["January","Search"],"not_rendered":{"charts":0,"images":0,"macros":1,"external_links":1,"defined_names":0,"comments":0,"pivot_tables":0},"unopened":[],"bounds":{"document_bytes":16777216,"sheet_cells":100000,"rows_first":2000,"rows_last":500,"rows_between":2000,"halvings":0,"cell_chars":16384,"cell_head_chars":4096},"cells_cut":0,"cells_raw":0,"read":"whole","date_system":"1900"}

{"sheet":"January","index":0,"n_rows":1936,"n_cols":12,"rows_kept":1936,"cut":false,"hidden":false,"merged":[]}
["التاريخ ","نوع الوقود","رقم السيارة","سعر اللتر","المبلغ المدفوع","رقم الكرت","قراءة العداد الجديد","قراءة العداد السابق","المسافـــــــة\nالمقطوعــــة","كمية البنزين\nالممونه للسياره\n( المره الثانيه )","معدل إستهلاك\nالوقود","م"]
["2018-01-01","ديزل ",8280,0.38,25,102,1210,2152,942,65.78947368421052,14.3184,{"$f":"ROW()-1","v":1}]
["2018-01-01","ديزل ",8280,0.38,25,102,102,10255,10153,65.78947368421052,154.32560000000001,{"$f":"ROW()-1","v":2}]
["2018-01-03","ديزل ",8779,0.38,25,105,142,345,8,65.78947368421052,0.12160000000000001,3]
["2018-01-04","ديزل ",2218,0.38,25,102,1210,2152,942,65.78947368421052,14.3184,4]
["2018-01-05","ديزل ",8280,0.38,25,102,102,10255,10153,65.78947368421052,154.32560000000001,5]
["2018-01-06","ديزل ",8779,0.38,25,105,142,12345,8,65.78947368421052,0.12160000000000001,6]
["2018-01-07","ديزل ",2218,0.38,25,102,1210,2152,942,65.78947368421052,14.3184,7]
["2018-01-08","ديزل ",8280,0.38,25,102,102,10255,10153,65.78947368421052,154.32560000000001,8]
["2018-01-09","ديزل ",8779,0.38,25,105,142,123,8,65.78947368421052,0.12160000000000001,9]
["2018-01-10","ديزل ",8280,0.38,25,102,1210,2152,942,65.78947368421052,14.3184,10]
["2018-01-11","ديزل ",8280,0.38,25,102,102,10255,10153,65.78947368421052,154.32560000000001,11]
["2018-01-12","ديزل ",8779,0.38,25,105,142,90,8,65.78947368421052,0.12160000000000001,12]
["2018-01-13","ديزل ",2218,0.38,25,1246,1530,1689,159,65.78947368421052,2.4168000000000003,13]
["2018-01-14","ديزل ",2218,0.38,25,99,1689,4567,2878,65.78947368421052,43.745600000000003,14]
["2018-01-15","ديزل ",2218,0.38,25,12,1689,1700,11,65.78947368421052,0.16720000000000002,15]
["2018-01-16","ديزل ",2218,0.38,25,109,0,1254,1254,65.78947368421052,19.0608,16]
["2018-01-17","ديزل ",2218,0.38,25,106,1254,10000,8746,65.78947368421052,132.9392,17]
["2018-01-18","ديزل ",2218,0.38,25,102,10000,111,-9889,65.78947368421052,-150.31280000000001,18]
["2018-01-19","ديزل ",8280,0.38,25,123,10255,12345,2090,65.78947368421052,31.768000000000004,19]
["2018-01-20","ديزل ",8280,0.38,25,102,1210,2152,942,65.78947368421052,14.3184,20]
["2018-01-21","ديزل ",8280,0.38,25,102,102,10255,10153,65.78947368421052,154.32560000000001,21]
["2018-01-22","ديزل ",8779,0.38,25,105,142,345,8,65.78947368421052,0.12160000000000001,22]
["2018-01-23","ديزل ",2218,0.38,25,102,1210,2152,942,65.78947368421052,14.3184,23]
["2018-01-24","ديزل ",8280,0.38,25,102,102,10255,10153,65.78947368421052,154.32560000000001,24]
["2018-01-25","ديزل ",8779,0.38,25,105,142,12345,8,65.78947368421052,0.12160000000000001,25]
["2018-01-26","ديزل ",2218,0.38,25,102,1210,2152,942,65.78947368421052,14.3184,26]
["2018-01-27","ديزل ",8280,0.38,25,102,102,10255,10153,65.78947368421052,154.32560000000001,27]
["2018-01-28","ديزل ",8779,0.38,25,105,142,123,8,65.78947368421052,0.12160000000000001,28]
["2018-01-29","ديزل ",8280,0.38,25,102,1210,2152,942,65.78947368421052,14.3184,29]
["2018-01-30","ديزل ",8280,0.38,25,102,102,10255,10153,65.78947368421052,154.32560000000001,30]
["2018-01-31","ديزل ",8779,0.38,25,105,142,90,8,65.78947368421052,0.12160000000000001,31]
["2018-02-01","ديزل ",2218,0.38,25,1246,1530,1689,159,65.78947368421052,2.4168000000000003,32]
["2018-02-02","ديزل ",2218,0.38,25,99,1689,4567,2878,65.78947368421052,43.745600000000003,33]
["2018-02-03","ديزل ",2218,0.38,25,12,1689,1700,11,65.78947368421052,0.16720000000000002,34]
["2018-02-04","ديزل ",2218,0.38,25,109,0,1254,1254,65.78947368421052,19.0608,35]
["2018-02-05","ديزل ",2218,0.38,25,106,1254,10000,8746,65.78947368421052,132.9392,36]
["2018-02-06","ديزل ",2218,0.38,25,102,10000,111,-9889,65.78947368421052,-150.31280000000001,37]
["2018-02-07","ديزل ",8280,0.38,25,123,10255,12345,2090,65.78947368421052,31.768000000000004,38]
["2018-02-08","ديزل ",8280,0.38,25,102,1210,2152,942,65.78947368421052,14.3184,39]
["2018-02-09","ديزل ",8280,0.38,25,102,102,10255,10153,65.78947368421052,154.32560000000001,40]
["2018-02-10","ديزل ",8779,0.38,25,105,142,345,8,65.78947368421052,0.12160000000000001,41]
["2018-02-11","ديزل ",2218,0.38,25,102,1210,2152,942,65.78947368421052,14.3184,42]
["2018-02-12","ديزل ",8280,0.38,25,102,102,10255,10153,65.78947368421052,154.32560000000001,43]
["2018-02-13","ديزل ",8779,0.38,25,105,142,12345,8,65.78947368421052,0.12160000000000001,44]
["2018-02-14","ديزل ",2218,0.38,25,102,1210,2152,942,65.78947368421052,14.3184,45]
["2018-02-15","ديزل ",8280,0.38,25,102,102,10255,10153,65.78947368421052,154.32560000000001,46]
["2018-02-16","ديزل ",8779,0.38,25,105,142,123,8,65.78947368421052,0.12160000000000001,47]
["2018-02-17","ديزل ",8280,0.38,25,102,1210,2152,942,65.78947368421052,14.3184,48]
["2018-02-18","ديزل ",8280,0.38,25,102,102,10255,10153,65.78947368421052,154.32560000000001,49]
["2018-02-19","ديزل ",8779,0.38,25,105,142,90,8,65.78947368421052,0.12160000000000001,50]
["2018-02-20","ديزل ",2218,0.38,25,1246,1530,1689,159,65.78947368421052,2.4168000000000003,51]
["2018-02-21","ديزل ",2218,0.38,25,99,1689,4567,2878,65.78947368421052,43.745600000000003,52]
["2018-02-22","ديزل ",2218,0.38,25,12,1689,1700,11,65.78947368421052,0.16720000000000002,53]
["2018-02-23","ديزل ",2218,0.38,25,109,0,1254,1254,65.78947368421052,19.0608,54]
["2018-02-24","ديزل ",2218,0.38,25,106,1254,10000,8746,65.78947368421052,132.9392,55]
["2018-02-25","ديزل ",2218,0.38,25,102,10000,111,-9889,65.78947368421052,-150.31280000000001,56]
["2018-02-26","ديزل ",8280,0.38,25,123,10255,12345,2090,65.78947368421052,31.768000000000004,57]
["2018-02-27","ديزل ",8280,0.38,10,200,12345,1000,-11345,26.315789473684209,-431.11,58]
[null,null,null,null,null,null,null,null,null,null,null,59]
[null,null,null,null,null,null,null,null,null,null,null,60]
[null,null,null,null,null,null,null,null,null,null,null,61]
[null,null,null,null,null,null,null,null,null,null,null,62]
[null,null,null,null,null,null,null,null,null,null,null,63]
[null,null,null,null,null,null,null,null,null,null,null,64]
[null,null,null,null,null,null,null,null,null,null,null,65]
[null,null,null,null,null,null,null,null,null,null,null,{"$f":"ROW()-1","v":66}]
[null,null,null,null,null,null,null,null,null,null,null,67]
[null,null,null,null,null,null,null,null,null,null,null,68]
[null,null,null,null,null,null,null,null,null,null,null,69]
[null,null,null,null,null,null,null,null,null,null,null,70]
[null,null,null,null,null,null,null,null,null,null,null,71]
[null,null,null,null,null,null,null,null,null,null,null,72]
[null,null,null,null,null,null,null,null,null,null,null,73]
[null,null,null,null,null,null,null,null,null,null,null,74]
[null,null,null,null,null,null,null,null,null,null,null,75]
[null,null,null,null,null,null,null,null,null,null,null,76]
[null,null,null,null,null,null,null,null,null,null,null,77]
[null,null,null,null,null,null,null,null,null,null,null,78]
[null,null,null,null,null,null,null,null,null,null,null,79]
[null,null,null,null,null,null,null,null,null,null,null,80]
[null,null,null,null,null,null,null,null,null,null,null,81]
[null,null,null,null,null,null,null,null,null,null,null,82]
[null,null,null,null,null,null,null,null,null,null,null,83]
[null,null,null,null,null,null,null,null,null,null,null,84]
[null,null,null,null,null,null,null,null,null,null,null,85]
[null,null,null,null,null,null,null,null,null,null,null,86]
[null,null,null,null,null,null,null,null,null,null,null,87]
[null,null,null,null,null,null,null,null,null,null,null,88]
[null,null,null,null,null,null,null,null,null,null,null,89]
[null,null,null,null,null,null,null,null,null,null,null,90]
[null,null,null,null,null,null,null,null,null,null,null,91]
[null,null,null,null,null,null,null,null,null,null,null,92]
[null,null,null,null,null,null,null,null,null,null,null,93]
[null,null,null,null,null,null,null,null,null,null,null,94]
[null,null,null,null,null,null,null,null,null,null,null,95]
[null,null,null,null,null,null,null,null,null,null,null,96]
[null,null,null,null,null,null,null,null,null,null,null,97]
[null,null,null,null,null,null,null,null,null,null,null,98]
[null,null,null,null,null,null,null,null,null,null,null,99]
[null,null,null,null,null,null,null,null,null,null,null,100]
[null,null,null,null,null,null,null,null,null,null,null,101]
[null,null,null,null,null,null,null,null,null,null,null,102]
[null,null,null,null,null,null,null,null,null,null,null,103]
[null,null,null,null,null,null,null,null,null,null,null,104]
[null,null,null,null,null,null,null,null,null,null,null,105]
[null,null,null,null,null,null,null,null,null,null,null,106]
[null,null,null,null,null,null,null,null,null,null,null,107]
[null,null,null,null,null,null,null,null,null,null,null,108]
[null,null,null,null,null,null,null,null,null,null,null,109]
[null,null,null,null,null,null,null,null,null,null,null,110]
[null,null,null,null,null,null,null,null,null,null,null,111]
[null,null,null,null,null,null,null,null,null,null,null,112]
[null,null,null,null,null,null,null,null,null,null,null,113]
[null,null,null,null,null,null,null,null,null,null,null,114]
[null,null,null,null,null,null,null,null,null,null,null,115]
[null,null,null,null,null,null,null,null,null,null,null,116]
[null,null,null,null,null,null,null,null,null,null,null,117]
[null,null,null,null,null,null,null,null,null,null,null,118]
[null,null,null,null,null,null,null,null,null,null,null,119]
[null,null,null,null,null,null,null,null,null,null,null,120]
[null,null,null,null,null,null,null,null,null,null,null,121]
[null,null,null,null,null,null,null,null,null,null,null,122]
[null,null,null,null,null,null,null,null,null,null,null,123]
[null,null,null,null,null,null,null,null,null,null,null,124]
[null,null,null,null,null,null,null,null,null,null,null,125]
[null,null,null,null,null,null,null,null,null,null,null,126]
[null,null,null,null,null,null,null,null,null,null,null,127]
[null,null,null,null,null,null,null,null,null,null,null,128]
[null,null,null,null,null,null,null,null,null,null,null,129]
[null,null,null,null,null,null,null,null,null,null,null,{"$f":"ROW()-1","v":130}]
[null,null,null,null,null,null,null,null,null,null,null,131]
[null,null,null,null,null,null,null,null,null,null,null,132]
[null,null,null,null,null,null,null,null,null,null,null,133]
[null,null,null,null,null,null,null,null,null,null,null,134]
[null,null,null,null,null,null,null,null,null,null,null,135]
[null,null,null,null,null,null,null,null,null,null,null,136]
[null,null,null,null,null,null,null,null,null,null,null,137]
[null,null,null,null,null,null,null,null,null,null,null,138]
[null,null,null,null,null,null,null,null,null,null,null,139]
[null,null,null,null,null,null,null,null,null,null,null,140]
[null,null,null,null,null,null,null,null,null,null,null,141]
[null,null,null,null,null,null,null,null,null,null,null,142]
[null,null,null,null,null,null,null,null,null,null,null,143]
[null,null,null,null,null,null,null,null,null,null,null,144]
[null,null,null,null,null,null,null,null,null,null,null,145]
[null,null,null,null,null,null,null,null,null,null,null,146]
[null,null,null,null,null,null,null,null,null,null,null,147]
[null,null,null,null,null,null,null,null,null,null,null,148]
[null,null,null,null,null,null,null,null,null,null,null,149]
[null,null,null,null,null,null,null,null,null,null,null,150]
[null,null,null,null,null,null,null,null,null,null,null,151]
[null,null,null,null,null,null,null,null,null,null,null,152]
[null,null,null,null,null,null,null,null,null,null,null,153]
[null,null,null,null,null,null,null,null,null,null,null,154]
[null,null,null,null,null,null,null,null,null,null,null,155]
[null,null,null,null,null,null,null,null,null,null,null,156]
[null,null,null,null,null,null,null,null,null,null,null,157]
[null,null,null,null,null,null,null,null,null,null,null,158]
[null,null,null,null,null,null,null,null,null,null,null,159]
[null,null,null,null,null,null,null,null,null,null,null,160]
[null,null,null,null,null,null,null,null,null,null,null,161]
[null,null,null,null,null,null,null,null,null,null,null,162]
[null,null,null,null,null,null,null,null,null,null,null,163]
[null,null,null,null,null,null,null,null,null,null,null,164]
[null,null,null,null,null,null,null,null,null,null,null,165]
[null,null,null,null,null,null,null,null,null,null,null,166]
[null,null,null,null,null,null,null,null,null,null,null,167]
[null,null,null,null,null,null,null,null,null,null,null,168]
[null,null,null,null,null,null,null,null,null,null,null,169]
[null,null,null,null,null,null,null,null,null,null,null,170]
[null,null,null,null,null,null,null,null,null,null,null,171]
[null,null,null,null,null,null,null,null,null,null,null,172]
[null,null,null,null,null,null,null,null,null,null,null,173]
[null,null,null,null,null,null,null,null,null,null,null,174]
[null,null,null,null,null,null,null,null,null,null,null,175]
[null,null,null,null,null,null,null,null,null,null,null,176]
[null,null,null,null,null,null,null,null,null,null,null,177]
[null,null,null,null,null,null,null,null,null,null,null,178]
[null,null,null,null,null,null,null,null,null,null,null,179]
[null,null,null,null,null,null,null,null,null,null,null,180]
[null,null,null,null,null,null,null,null,null,null,null,181]
[null,null,null,null,null,null,null,null,null,null,null,182]
[null,null,null,null,null,null,null,null,null,null,null,183]
[null,null,null,null,null,null,null,null,null,null,null,184]
[null,null,null,null,null,null,null,null,null,null,null,185]
[null,null,null,null,null,null,null,null,null,null,null,186]
[null,null,null,null,null,null,null,null,null,null,null,187]
[null,null,null,null,null,null,null,null,null,null,null,188]
[null,null,null,null,null,null,null,null,null,null,null,189]
[null,null,null,null,null,null,null,null,null,null,null,190]
[null,null,null,null,null,null,null,null,null,null,null,191]
[null,null,null,null,null,null,null,null,null,null,null,192]
[null,null,null,null,null,null,null,null,null,null,null,193]
[null,null,null,null,null,null,null,null,null,null,null,{"$f":"ROW()-1","v":194}]
[null,null,null,null,null,null,null,null,null,null,null,195]
[null,null,null,null,null,null,null,null,null,null,null,196]
[null,null,null,null,null,null,null,null,null,null,null,197]
[null,null,null,null,null,null,null,null,null,null,null,198]
[null,null,null,null,null,null,null,null,null,null,null,199]
[null,null,null,null,null,null,null,null,null,null,null,200]
[null,null,null,null,null,null,null,null,null,null,null,201]
[null,null,null,null,null,null,null,null,null,null,null,202]
[null,null,null,null,null,null,null,null,null,null,null,203]
[null,null,null,null,null,null,null,null,null,null,null,204]
[null,null,null,null,null,null,null,null,null,null,null,205]
[null,null,null,null,null,null,null,null,null,null,null,206]
[null,null,null,null,null,null,null,null,null,null,null,207]
[null,null,null,null,null,null,null,null,null,null,null,208]
[null,null,null,null,null,null,null,null,null,null,null,209]
[null,null,null,null,null,null,null,null,null,null,null,210]
[null,null,null,null,null,null,null,null,null,null,null,211]
[null,null,null,null,null,null,null,null,null,null,null,212]
[null,null,null,null,null,null,null,null,null,null,null,213]
[null,null,null,null,null,null,null,null,null,null,null,214]
[null,null,null,null,null,null,null,null,null,null,null,215]
[null,null,null,null,null,null,null,null,null,null,null,216]
[null,null,null,null,null,null,null,null,null,null,null,217]
[null,null,null,null,null,null,null,null,null,null,null,218]
[null,null,null,null,null,null,null,null,null,null,null,219]
[null,null,null,null,null,null,null,null,null,null,null,220]
[null,null,null,null,null,null,null,null,null,null,null,221]
[null,null,null,null,null,null,null,null,null,null,null,222]
[null,null,null,null,null,null,null,null,null,null,null,223]
[null,null,null,null,null,null,null,null,null,null,null,224]
[null,null,null,null,null,null,null,null,null,null,null,225]
[null,null,null,null,null,null,null,null,null,null,null,226]
[null,null,null,null,null,null,null,null,null,null,null,227]
[null,null,null,null,null,null,null,null,null,null,null,228]
[null,null,null,null,null,null,null,null,null,null,null,229]
[null,null,null,null,null,null,null,null,null,null,null,230]
[null,null,null,null,null,null,null,null,null,null,null,231]
[null,null,null,null,null,null,null,null,null,null,null,232]
[null,null,null,null,null,null,null,null,null,null,null,233]
[null,null,null,null,null,null,null,null,null,null,null,234]
[null,null,null,null,null,null,null,null,null,null,null,235]
[null,null,null,null,null,null,null,null,null,null,null,236]
[null,null,null,null,null,null,null,null,null,null,null,237]
[null,null,null,null,null,null,null,null,null,null,null,238]
[null,null,null,null,null,null,null,null,null,null,null,239]
[null,null,null,null,null,null,null,null,null,null,null,240]
[null,null,null,null,null,null,null,null,null,null,null,241]
[null,null,null,null,null,null,null,null,null,null,null,242]
[null,null,null,null,null,null,null,null,null,null,null,243]
[null,null,null,null,null,null,null,null,null,null,null,244]
[null,null,null,null,null,null,null,null,null,null,null,245]
[null,null,null,null,null,null,null,null,null,null,null,246]
[null,null,null,null,null,null,null,null,null,null,null,247]
[null,null,null,null,null,null,null,null,null,null,null,248]
[null,null,null,null,null,null,null,null,null,null,null,249]
[null,null,null,null,null,null,null,null,null,null,null,250]
[null,null,null,null,null,null,null,null,null,null,null,251]
[null,null,null,null,null,null,null,null,null,null,null,252]
[null,null,null,null,null,null,null,null,null,null,null,253]
[null,null,null,null,null,null,null,null,null,null,null,254]
[null,null,null,null,null,null,null,null,null,null,null,255]
[null,null,null,null,null,null,null,null,null,null,null,256]
[null,null,null,null,null,null,null,null,null,null,null,257]
[null,null,null,null,null,null,null,null,null,null,null,{"$f":"ROW()-1","v":258}]
[null,null,null,null,null,null,null,null,null,null,null,259]
[null,null,null,null,null,null,null,null,null,null,null,260]
[null,null,null,null,null,null,null,null,null,null,null,261]
[null,null,null,null,null,null,null,null,null,null,null,262]
[null,null,null,null,null,null,null,null,null,null,null,263]
[null,null,null,null,null,null,null,null,null,null,null,264]
[null,null,null,null,null,null,null,null,null,null,null,265]
[null,null,null,null,null,null,null,null,null,null,null,266]
[null,null,null,null,null,null,null,null,null,null,null,267]
[null,null,null,null,null,null,null,null,null,null,null,268]
[null,null,null,null,null,null,null,null,null,null,null,269]
[null,null,null,null,null,null,null,null,null,null,null,270]
[null,null,null,null,null,null,null,null,null,null,null,271]
[null,null,null,null,null,null,null,null,null,null,null,272]
[null,null,null,null,null,null,null,null,null,null,null,273]
[null,null,null,null,null,null,null,null,null,null,null,274]
[null,null,null,null,null,null,null,null,null,null,null,275]
[null,null,null,null,null,null,null,null,null,null,null,276]
[null,null,null,null,null,null,null,null,null,null,null,277]
[null,null,null,null,null,null,null,null,null,null,null,278]
[null,null,null,null,null,null,null,null,null,null,null,279]
[null,null,null,null,null,null,null,null,null,null,null,280]
[null,null,null,null,null,null,null,null,null,null,null,281]
[null,null,null,null,null,null,null,null,null,null,null,282]
[null,null,null,null,null,null,null,null,null,null,null,283]
[null,null,null,null,null,null,null,null,null,null,null,284]
[null,null,null,null,null,null,null,null,null,null,null,285]
[null,null,null,null,null,null,null,null,null,null,null,286]
[null,null,null,null,null,null,null,null,null,null,null,287]
[null,null,null,null,null,null,null,null,null,null,null,288]
[null,null,null,null,null,null,null,null,null,null,null,289]
[null,null,null,null,null,null,null,null,null,null,null,290]
[null,null,null,null,null,null,null,null,null,null,null,291]
[null,null,null,null,null,null,null,null,null,null,null,292]
[null,null,null,null,null,null,null,null,null,null,null,293]
[null,null,null,null,null,null,null,null,null,null,null,294]
[null,null,null,null,null,null,null,null,null,null,null,295]
[null,null,null,null,null,null,null,null,null,null,null,296]
[null,null,null,null,null,null,null,null,null,null,null,297]
[null,null,null,null,null,null,null,null,null,null,null,298]
[null,null,null,null,null,null,null,null,null,null,null,299]
[null,null,null,null,null,null,null,null,null,null,null,300]
[null,null,null,null,null,null,null,null,null,null,null,301]
[null,null,null,null,null,null,null,null,null,null,null,302]
[null,null,null,null,null,null,null,null,null,null,null,303]
[null,null,null,null,null,null,null,null,null,null,null,304]
[null,null,null,null,null,null,null,null,null,null,null,305]
[null,null,null,null,null,null,null,null,null,null,null,306]
[null,null,null,null,null,null,null,null,null,null,null,307]
[null,null,null,null,null,null,null,null,null,null,null,308]
[null,null,null,null,null,null,null,null,null,null,null,309]
[null,null,null,null,null,null,null,null,null,null,null,310]
[null,null,null,null,null,null,null,null,null,null,null,311]
[null,null,null,null,null,null,null,null,null,null,null,312]
[null,null,null,null,null,null,null,null,null,null,null,313]
[null,null,null,null,null,null,null,null,null,null,null,314]
[null,null,null,null,null,null,null,null,null,null,null,315]
[null,null,null,null,null,null,null,null,null,null,null,316]
[null,null,null,null,null,null,null,null,null,null,null,317]
[null,null,null,null,null,null,null,null,null,null,null,318]
[null,null,null,null,null,null,null,null,null,null,null,319]
[null,null,null,null,null,null,null,null,null,null,null,320]
[null,null,null,null,null,null,null,null,null,null,null,321]
[null,null,null,null,null,null,null,null,null,null,null,{"$f":"ROW()-1","v":322}]
[null,null,null,null,null,null,null,null,null,null,null,323]
[null,null,null,null,null,null,null,null,null,null,null,324]
[null,null,null,null,null,null,null,null,null,null,null,325]
[null,null,null,null,null,null,null,null,null,null,null,326]
[null,null,null,null,null,null,null,null,null,null,null,327]
[null,null,null,null,null,null,null,null,null,null,null,328]
[null,null,null,null,null,null,null,null,null,null,null,329]
[null,null,null,null,null,null,null,null,null,null,null,330]
[null,null,null,null,null,null,null,null,null,null,null,331]
[null,null,null,null,null,null,null,null,null,null,null,332]
[null,null,null,null,null,null,null,null,null,null,null,333]
[null,null,null,null,null,null,null,null,null,null,null,334]
[null,null,null,null,null,null,null,null,null,null,null,335]
[null,null,null,null,null,null,null,null,null,null,null,336]
[null,null,null,null,null,null,null,null,null,null,null,337]
[null,null,null,null,null,null,null,null,null,null,null,338]
[null,null,null,null,null,null,null,null,null,null,null,339]
[null,null,null,null,null,null,null,null,null,null,null,340]
[null,null,null,null,null,null,null,null,null,null,null,341]
[null,null,null,null,null,null,null,null,null,null,null,342]
[null,null,null,null,null,null,null,null,null,null,null,343]
[null,null,null,null,null,null,null,null,null,null,null,344]
[null,null,null,null,null,null,null,null,null,null,null,345]
[null,null,null,null,null,null,null,null,null,null,null,346]
[null,null,null,null,null,null,null,null,null,null,null,347]
[null,null,null,null,null,null,null,null,null,null,null,348]
[null,null,null,null,null,null,null,null,null,null,null,349]
[null,null,null,null,null,null,null,null,null,null,null,350]
[null,null,null,null,null,null,null,null,null,null,null,351]
[null,null,null,null,null,null,null,null,null,null,null,352]
[null,null,null,null,null,null,null,null,null,null,null,353]
[null,null,null,null,null,null,null,null,null,null,null,354]
[null,null,null,null,null,null,null,null,null,null,null,355]
[null,null,null,null,null,null,null,null,null,null,null,356]
[null,null,null,null,null,null,null,null,null,null,null,357]
[null,null,null,null,null,null,null,null,null,null,null,358]
[null,null,null,null,null,null,null,null,null,null,null,359]
[null,null,null,null,null,null,null,null,null,null,null,360]
[null,null,null,null,null,null,null,null,null,null,null,361]
[null,null,null,null,null,null,null,null,null,null,null,362]
[null,null,null,null,null,null,null,null,null,null,null,363]
[null,null,null,null,null,null,null,null,null,null,null,364]
[null,null,null,null,null,null,null,null,null,null,null,365]
[null,null,null,null,null,null,null,null,null,null,null,366]
[null,null,null,null,null,null,null,null,null,null,null,367]
[null,null,null,null,null,null,null,null,null,null,null,368]
[null,null,null,null,null,null,null,null,null,null,null,369]
[null,null,null,null,null,null,null,null,null,null,null,370]
[null,null,null,null,null,null,null,null,null,null,null,371]
[null,null,null,null,null,null,null,null,null,null,null,372]
[null,null,null,null,null,null,null,null,null,null,null,373]
[null,null,null,null,null,null,null,null,null,null,null,374]
[null,null,null,null,null,null,null,null,null,null,null,375]
[null,null,null,null,null,null,null,null,null,null,null,376]
[null,null,null,null,null,null,null,null,null,null,null,377]
[null,null,null,null,null,null,null,null,null,null,null,378]
[null,null,null,null,null,null,null,null,null,null,null,379]
[null,null,null,null,null,null,null,null,null,null,null,380]
[null,null,null,null,null,null,null,null,null,null,null,381]
[null,null,null,null,null,null,null,null,null,null,null,382]
[null,null,null,null,null,null,null,null,null,null,null,383]
[null,null,null,null,null,null,null,null,null,null,null,384]
[null,null,null,null,null,null,null,null,null,null,null,385]
[null,null,null,null,null,null,null,null,null,null,null,{"$f":"ROW()-1","v":386}]
[null,null,null,null,null,null,null,null,null,null,null,387]
[null,null,null,null,null,null,null,null,null,null,null,388]
[null,null,null,null,null,null,null,null,null,null,null,389]
[null,null,null,null,null,null,null,null,null,null,null,390]
[null,null,null,null,null,null,null,null,null,null,null,391]
[null,null,null,null,null,null,null,null,null,null,null,392]
[null,null,null,null,null,null,null,null,null,null,null,393]
[null,null,null,null,null,null,null,null,null,null,null,394]
[null,null,null,null,null,null,null,null,null,null,null,395]
[null,null,null,null,null,null,null,null,null,null,null,396]
[null,null,null,null,null,null,null,null,null,null,null,397]
[null,null,null,null,null,null,null,null,null,null,null,398]
[null,null,null,null,null,null,null,null,null,null,null,399]
[null,null,null,null,null,null,null,null,null,null,null,400]
[null,null,null,null,null,null,null,null,null,null,null,401]
[null,null,null,null,null,null,null,null,null,null,null,402]
[null,null,null,null,null,null,null,null,null,null,null,403]
[null,null,null,null,null,null,null,null,null,null,null,404]
[null,null,null,null,null,null,null,null,null,null,null,405]
[null,null,null,null,null,null,null,null,null,null,null,406]
[null,null,null,null,null,null,null,null,null,null,null,407]
[null,null,null,null,null,null,null,null,null,null,null,408]
[null,null,null,null,null,null,null,null,null,null,null,409]
[null,null,null,null,null,null,null,null,null,null,null,410]
[null,null,null,null,null,null,null,null,null,null,null,411]
[null,null,null,null,null,null,null,null,null,null,null,412]
[null,null,null,null,null,null,null,null,null,null,null,413]
[null,null,null,null,null,null,null,null,null,null,null,414]
[null,null,null,null,null,null,null,null,null,null,null,415]
[null,null,null,null,null,null,null,null,null,null,null,416]
[null,null,null,null,null,null,null,null,null,null,null,417]
[null,null,null,null,null,null,null,null,null,null,null,418]
[null,null,null,null,null,null,null,null,null,null,null,419]
[null,null,null,null,null,null,null,null,null,null,null,420]
[null,null,null,null,null,null,null,null,null,null,null,421]
[null,null,null,null,null,null,null,null,null,null,null,422]
[null,null,null,null,null,null,null,null,null,null,null,423]
[null,null,null,null,null,null,null,null,null,null,null,424]
[null,null,null,null,null,null,null,null,null,null,null,425]
[null,null,null,null,null,null,null,null,null,null,null,426]
[null,null,null,null,null,null,null,null,null,null,null,427]
[null,null,null,null,null,null,null,null,null,null,null,428]
[null,null,null,null,null,null,null,null,null,null,null,429]
[null,null,null,null,null,null,null,null,null,null,null,430]
[null,null,null,null,null,null,null,null,null,null,null,431]
[null,null,null,null,null,null,null,null,null,null,null,432]
[null,null,null,null,null,null,null,null,null,null,null,433]
[null,null,null,null,null,null,null,null,null,null,null,434]
[null,null,null,null,null,null,null,null,null,null,null,435]
[null,null,null,null,null,null,null,null,null,null,null,436]
[null,null,null,null,null,null,null,null,null,null,null,437]
[null,null,null,null,null,null,null,null,null,null,null,438]
[null,null,null,null,null,null,null,null,null,null,null,439]
[null,null,null,null,null,null,null,null,null,null,null,440]
[null,null,null,null,null,null,null,null,null,null,null,441]
[null,null,null,null,null,null,null,null,null,null,null,442]
[null,null,null,null,null,null,null,null,null,null,null,443]
[null,null,null,null,null,null,null,null,null,null,null,444]
[null,null,null,null,null,null,null,null,null,null,null,445]
[null,null,null,null,null,null,null,null,null,null,null,446]
[null,null,null,null,null,null,null,null,null,null,null,447]
[null,null,null,null,null,null,null,null,null,null,null,448]
[null,null,null,null,null,null,null,null,null,null,null,449]
[null,null,null,null,null,null,null,null,null,null,null,{"$f":"ROW()-1","v":450}]
[null,null,null,null,null,null,null,null,null,null,null,451]
[null,null,null,null,null,null,null,null,null,null,null,452]
[null,null,null,null,null,null,null,null,null,null,null,453]
[null,null,null,null,null,null,null,null,null,null,null,454]
[null,null,null,null,null,null,null,null,null,null,null,455]
[null,null,null,null,null,null,null,null,null,null,null,456]
[null,null,null,null,null,null,null,null,null,null,null,457]
[null,null,null,null,null,null,null,null,null,null,null,458]
[null,null,null,null,null,null,null,null,null,null,null,459]
[null,null,null,null,null,null,null,null,null,null,null,460]
[null,null,null,null,null,null,null,null,null,null,null,461]
[null,null,null,null,null,null,null,null,null,null,null,462]
[null,null,null,null,null,null,null,null,null,null,null,463]
[null,null,null,null,null,null,null,null,null,null,null,464]
[null,null,null,null,null,null,null,null,null,null,null,465]
[null,null,null,null,null,null,null,null,null,null,null,466]
[null,null,null,null,null,null,null,null,null,null,null,467]
[null,null,null,null,null,null,null,null,null,null,null,468]
[null,null,null,null,null,null,null,null,null,null,null,469]
[null,null,null,null,null,null,null,null,null,null,null,470]
[null,null,null,null,null,null,null,null,null,null,null,471]
[null,null,null,null,null,null,null,null,null,null,null,472]
[null,null,null,null,null,null,null,null,null,null,null,473]
[null,null,null,null,null,null,null,null,null,null,null,474]
[null,null,null,null,null,null,null,null,null,null,null,475]
[null,null,null,null,null,null,null,null,null,null,null,476]
[null,null,null,null,null,null,null,null,null,null,null,477]
[null,null,null,null,null,null,null,null,null,null,null,478]
[null,null,null,null,null,null,null,null,null,null,null,479]
[null,null,null,null,null,null,null,null,null,null,null,480]
[null,null,null,null,null,null,null,null,null,null,null,481]
[null,null,null,null,null,null,null,null,null,null,null,482]
[null,null,null,null,null,null,null,null,null,null,null,483]
[null,null,null,null,null,null,null,null,null,null,null,484]
[null,null,null,null,null,null,null,null,null,null,null,485]
[null,null,null,null,null,null,null,null,null,null,null,486]
[null,null,null,null,null,null,null,null,null,null,null,487]
[null,null,null,null,null,null,null,null,null,null,null,488]
[null,null,null,null,null,null,null,null,null,null,null,489]
[null,null,null,null,null,null,null,null,null,null,null,490]
[null,null,null,null,null,null,null,null,null,null,null,491]
[null,null,null,null,null,null,null,null,null,null,null,492]
[null,null,null,null,null,null,null,null,null,null,null,493]
[null,null,null,null,null,null,null,null,null,null,null,494]
[null,null,null,null,null,null,null,null,null,null,null,495]
[null,null,null,null,null,null,null,null,null,null,null,496]
[null,null,null,null,null,null,null,null,null,null,null,497]
[null,null,null,null,null,null,null,null,null,null,null,498]
[null,null,null,null,null,null,null,null,null,null,null,499]
[null,null,null,null,null,null,null,null,null,null,null,500]
[null,null,null,null,null,null,null,null,null,null,null,501]
[null,null,null,null,null,null,null,null,null,null,null,502]
[null,null,null,null,null,null,null,null,null,null,null,503]
[null,null,null,null,null,null,null,null,null,null,null,504]
[null,null,null,null,null,null,null,null,null,null,null,505]
[null,null,null,null,null,null,null,null,null,null,null,506]
[null,null,null,null,null,null,null,null,null,null,null,507]
[null,null,null,null,null,null,null,null,null,null,null,508]
[null,null,null,null,null,null,null,null,null,null,null,509]
[null,null,null,null,null,null,null,null,null,null,null,510]
[null,null,null,null,null,null,null,null,null,null,null,511]
[null,null,null,null,null,null,null,null,null,null,null,512]
[null,null,null,null,null,null,null,null,null,null,null,513]
[null,null,null,null,null,null,null,null,null,null,null,{"$f":"ROW()-1","v":514}]
[null,null,null,null,null,null,null,null,null,null,null,515]
[null,null,null,null,null,null,null,null,null,null,null,516]
[null,null,null,null,null,null,null,null,null,null,null,517]
[null,null,null,null,null,null,null,null,null,null,null,518]
[null,null,null,null,null,null,null,null,null,null,null,519]
[null,null,null,null,null,null,null,null,null,null,null,520]
[null,null,null,null,null,null,null,null,null,null,null,521]
[null,null,null,null,null,null,null,null,null,null,null,522]
[null,null,null,null,null,null,null,null,null,null,null,523]
[null,null,null,null,null,null,null,null,null,null,null,524]
[null,null,null,null,null,null,null,null,null,null,null,525]
[null,null,null,null,null,null,null,null,null,null,null,526]
[null,null,null,null,null,null,null,null,null,null,null,527]
[null,null,null,null,null,null,null,null,null,null,null,528]
[null,null,null,null,null,null,null,null,null,null,null,529]
[null,null,null,null,null,null,null,null,null,null,null,530]
[null,null,null,null,null,null,null,null,null,null,null,531]
[null,null,null,null,null,null,null,null,null,null,null,532]
[null,null,null,null,null,null,null,null,null,null,null,533]
[null,null,null,null,null,null,null,null,null,null,null,534]
[null,null,null,null,null,null,null,null,null,null,null,535]
[null,null,null,null,null,null,null,null,null,null,null,536]
[null,null,null,null,null,null,null,null,null,null,null,537]
[null,null,null,null,null,null,null,null,null,null,null,538]
[null,null,null,null,null,null,null,null,null,null,null,539]
[null,null,null,null,null,null,null,null,null,null,null,540]
[null,null,null,null,null,null,null,null,null,null,null,541]
[null,null,null,null,null,null,null,null,null,null,null,542]
[null,null,null,null,null,null,null,null,null,null,null,543]
[null,null,null,null,null,null,null,null,null,null,null,544]
[null,null,null,null,null,null,null,null,null,null,null,545]
[null,null,null,null,null,null,null,null,null,null,null,546]
[null,null,null,null,null,null,null,null,null,null,null,547]
[null,null,null,null,null,null,null,null,null,null,null,548]
[null,null,null,null,null,null,null,null,null,null,null,549]
[null,null,null,null,null,null,null,null,null,null,null,550]
[null,null,null,null,null,null,null,null,null,null,null,551]
[null,null,null,null,null,null,null,null,null,null,null,552]
[null,null,null,null,null,null,null,null,null,null,null,553]
[null,null,null,null,null,null,null,null,null,null,null,554]
[null,null,null,null,null,null,null,null,null,null,null,555]
[null,null,null,null,null,null,null,null,null,null,null,556]
[null,null,null,null,null,null,null,null,null,null,null,557]
[null,null,null,null,null,null,null,null,null,null,null,558]
[null,null,null,null,null,null,null,null,null,null,null,559]
[null,null,null,null,null,null,null,null,null,null,null,560]
[null,null,null,null,null,null,null,null,null,null,null,561]
[null,null,null,null,null,null,null,null,null,null,null,562]
[null,null,null,null,null,null,null,null,null,null,null,563]
[null,null,null,null,null,null,null,null,null,null,null,564]
[null,null,null,null,null,null,null,null,null,null,null,565]
[null,null,null,null,null,null,null,null,null,null,null,566]
[null,null,null,null,null,null,null,null,null,null,null,567]
[null,null,null,null,null,null,null,null,null,null,null,568]
[null,null,null,null,null,null,null,null,null,null,null,569]
[null,null,null,null,null,null,null,null,null,null,null,570]
[null,null,null,null,null,null,null,null,null,null,null,571]
[null,null,null,null,null,null,null,null,null,null,null,572]
[null,null,null,null,null,null,null,null,null,null,null,573]
[null,null,null,null,null,null,null,null,null,null,null,574]
[null,null,null,null,null,null,null,null,null,null,null,575]
[null,null,null,null,null,null,null,null,null,null,null,576]
[null,null,null,null,null,null,null,null,null,null,null,577]
[null,null,null,null,null,null,null,null,null,null,null,{"$f":"ROW()-1","v":578}]
[null,null,null,null,null,null,null,null,null,null,null,579]
[null,null,null,null,null,null,null,null,null,null,null,580]
[null,null,null,null,null,null,null,null,null,null,null,581]
[null,null,null,null,null,null,null,null,null,null,null,582]
[null,null,null,null,null,null,null,null,null,null,null,583]
[null,null,null,null,null,null,null,null,null,null,null,584]
[null,null,null,null,null,null,null,null,null,null,null,585]
[null,null,null,null,null,null,null,null,null,null,null,586]
[null,null,null,null,null,null,null,null,null,null,null,587]
[null,null,null,null,null,null,null,null,null,null,null,588]
[null,null,null,null,null,null,null,null,null,null,null,589]
[null,null,null,null,null,null,null,null,null,null,null,590]
[null,null,null,null,null,null,null,null,null,null,null,591]
[null,null,null,null,null,null,null,null,null,null,null,592]
[null,null,null,null,null,null,null,null,null,null,null,593]
[null,null,null,null,null,null,null,null,null,null,null,594]
[null,null,null,null,null,null,null,null,null,null,null,595]
[null,null,null,null,null,null,null,null,null,null,null,596]
[null,null,null,null,null,null,null,null,null,null,null,597]
[null,null,null,null,null,null,null,null,null,null,null,598]
[null,null,null,null,null,null,null,null,null,null,null,599]
[null,null,null,null,null,null,null,null,null,null,null,600]
[null,null,null,null,null,null,null,null,null,null,null,601]
[null,null,null,null,null,null,null,null,null,null,null,602]
[null,null,null,null,null,null,null,null,null,null,null,603]
[null,null,null,null,null,null,null,null,null,null,null,604]
[null,null,null,null,null,null,null,null,null,null,null,605]
[null,null,null,null,null,null,null,null,null,null,null,606]
[null,null,null,null,null,null,null,null,null,null,null,607]
[null,null,null,null,null,null,null,null,null,null,null,608]
[null,null,null,null,null,null,null,null,null,null,null,609]
[null,null,null,null,null,null,null,null,null,null,null,610]
[null,null,null,null,null,null,null,null,null,null,null,611]
[null,null,null,null,null,null,null,null,null,null,null,612]
[null,null,null,null,null,null,null,null,null,null,null,613]
[null,null,null,null,null,null,null,null,null,null,null,614]
[null,null,null,null,null,null,null,null,null,null,null,615]
[null,null,null,null,null,null,null,null,null,null,null,616]
[null,null,null,null,null,null,null,null,null,null,null,617]
[null,null,null,null,null,null,null,null,null,null,null,618]
[null,null,null,null,null,null,null,null,null,null,null,619]
[null,null,null,null,null,null,null,null,null,null,null,620]
[null,null,null,null,null,null,null,null,null,null,null,621]
[null,null,null,null,null,null,null,null,null,null,null,622]
[null,null,null,null,null,null,null,null,null,null,null,623]
[null,null,null,null,null,null,null,null,null,null,null,624]
[null,null,null,null,null,null,null,null,null,null,null,625]
[null,null,null,null,null,null,null,null,null,null,null,626]
[null,null,null,null,null,null,null,null,null,null,null,627]
[null,null,null,null,null,null,null,null,null,null,null,628]
[null,null,null,null,null,null,null,null,null,null,null,629]
[null,null,null,null,null,null,null,null,null,null,null,630]
[null,null,null,null,null,null,null,null,null,null,null,631]
[null,null,null,null,null,null,null,null,null,null,null,632]
[null,null,null,null,null,null,null,null,null,null,null,633]
[null,null,null,null,null,null,null,null,null,null,null,634]
[null,null,null,null,null,null,null,null,null,null,null,635]
[null,null,null,null,null,null,null,null,null,null,null,636]
[null,null,null,null,null,null,null,null,null,null,null,637]
[null,null,null,null,null,null,null,null,null,null,null,638]
[null,null,null,null,null,null,null,null,null,null,null,639]
[null,null,null,null,null,null,null,null,null,null,null,640]
[null,null,null,null,null,null,null,null,null,null,null,641]
[null,null,null,null,null,null,null,null,null,null,null,{"$f":"ROW()-1","v":642}]
[null,null,null,null,null,null,null,null,null,null,null,643]
[null,null,null,null,null,null,null,null,null,null,null,644]
[null,null,null,null,null,null,null,null,null,null,null,645]
[null,null,null,null,null,null,null,null,null,null,null,646]
[null,null,null,null,null,null,null,null,null,null,null,647]
[null,null,null,null,null,null,null,null,null,null,null,648]
[null,null,null,null,null,null,null,null,null,null,null,649]
[null,null,null,null,null,null,null,null,null,null,null,650]
[null,null,null,null,null,null,null,null,null,null,null,651]
[null,null,null,null,null,null,null,null,null,null,null,652]
[null,null,null,null,null,null,null,null,null,null,null,653]
[null,null,null,null,null,null,null,null,null,null,null,654]
[null,null,null,null,null,null,null,null,null,null,null,655]
[null,null,null,null,null,null,null,null,null,null,null,656]
[null,null,null,null,null,null,null,null,null,null,null,657]
[null,null,null,null,null,null,null,null,null,null,null,658]
[null,null,null,null,null,null,null,null,null,null,null,659]
[null,null,null,null,null,null,null,null,null,null,null,660]
[null,null,null,null,null,null,null,null,null,null,null,661]
[null,null,null,null,null,null,null,null,null,null,null,662]
[null,null,null,null,null,null,null,null,null,null,null,663]
[null,null,null,null,null,null,null,null,null,null,null,664]
[null,null,null,null,null,null,null,null,null,null,null,665]
[null,null,null,null,null,null,null,null,null,null,null,666]
[null,null,null,null,null,null,null,null,null,null,null,667]
[null,null,null,null,null,null,null,null,null,null,null,668]
[null,null,null,null,null,null,null,null,null,null,null,669]
[null,null,null,null,null,null,null,null,null,null,null,670]
[null,null,null,null,null,null,null,null,null,null,null,671]
[null,null,null,null,null,null,null,null,null,null,null,672]
[null,null,null,null,null,null,null,null,null,null,null,673]
[null,null,null,null,null,null,null,null,null,null,null,674]
[null,null,null,null,null,null,null,null,null,null,null,675]
[null,null,null,null,null,null,null,null,null,null,null,676]
[null,null,null,null,null,null,null,null,null,null,null,677]
[null,null,null,null,null,null,null,null,null,null,null,678]
[null,null,null,null,null,null,null,null,null,null,null,679]
[null,null,null,null,null,null,null,null,null,null,null,680]
[null,null,null,null,null,null,null,null,null,null,null,681]
[null,null,null,null,null,null,null,null,null,null,null,682]
[null,null,null,null,null,null,null,null,null,null,null,683]
[null,null,null,null,null,null,null,null,null,null,null,684]
[null,null,null,null,null,null,null,null,null,null,null,685]
[null,null,null,null,null,null,null,null,null,null,null,686]
[null,null,null,null,null,null,null,null,null,null,null,687]
[null,null,null,null,null,null,null,null,null,null,null,688]
[null,null,null,null,null,null,null,null,null,null,null,689]
[null,null,null,null,null,null,null,null,null,null,null,690]
[null,null,null,null,null,null,null,null,null,null,null,691]
[null,null,null,null,null,null,null,null,null,null,null,692]
[null,null,null,null,null,null,null,null,null,null,null,693]
[null,null,null,null,null,null,null,null,null,null,null,694]
[null,null,null,null,null,null,null,null,null,null,null,695]
[null,null,null,null,null,null,null,null,null,null,null,696]
[null,null,null,null,null,null,null,null,null,null,null,697]
[null,null,null,null,null,null,null,null,null,null,null,698]
[null,null,null,null,null,null,null,null,null,null,null,699]
[null,null,null,null,null,null,null,null,null,null,null,700]
[null,null,null,null,null,null,null,null,null,null,null,701]
[null,null,null,null,null,null,null,null,null,null,null,702]
[null,null,null,null,null,null,null,null,null,null,null,703]
[null,null,null,null,null,null,null,null,null,null,null,704]
[null,null,null,null,null,null,null,null,null,null,null,705]
[null,null,null,null,null,null,null,null,null,null,null,{"$f":"ROW()-1","v":706}]
[null,null,null,null,null,null,null,null,null,null,null,707]
[null,null,null,null,null,null,null,null,null,null,null,708]
[null,null,null,null,null,null,null,null,null,null,null,709]
[null,null,null,null,null,null,null,null,null,null,null,710]
[null,null,null,null,null,null,null,null,null,null,null,711]
[null,null,null,null,null,null,null,null,null,null,null,712]
[null,null,null,null,null,null,null,null,null,null,null,713]
[null,null,null,null,null,null,null,null,null,null,null,714]
[null,null,null,null,null,null,null,null,null,null,null,715]
[null,null,null,null,null,null,null,null,null,null,null,716]
[null,null,null,null,null,null,null,null,null,null,null,717]
[null,null,null,null,null,null,null,null,null,null,null,718]
[null,null,null,null,null,null,null,null,null,null,null,719]
[null,null,null,null,null,null,null,null,null,null,null,720]
[null,null,null,null,null,null,null,null,null,null,null,721]
[null,null,null,null,null,null,null,null,null,null,null,722]
[null,null,null,null,null,null,null,null,null,null,null,723]
[null,null,null,null,null,null,null,null,null,null,null,724]
[null,null,null,null,null,null,null,null,null,null,null,725]
[null,null,null,null,null,null,null,null,null,null,null,726]
[null,null,null,null,null,null,null,null,null,null,null,727]
[null,null,null,null,null,null,null,null,null,null,null,728]
[null,null,null,null,null,null,null,null,null,null,null,729]
[null,null,null,null,null,null,null,null,null,null,null,730]
[null,null,null,null,null,null,null,null,null,null,null,731]
[null,null,null,null,null,null,null,null,null,null,null,732]
[null,null,null,null,null,null,null,null,null,null,null,733]
[null,null,null,null,null,null,null,null,null,null,null,734]
[null,null,null,null,null,null,null,null,null,null,null,735]
[null,null,null,null,null,null,null,null,null,null,null,736]
[null,null,null,null,null,null,null,null,null,null,null,737]
[null,null,null,null,null,null,null,null,null,null,null,738]
[null,null,null,null,null,null,null,null,null,null,null,739]
[null,null,null,null,null,null,null,null,null,null,null,740]
[null,null,null,null,null,null,null,null,null,null,null,741]
[null,null,null,null,null,null,null,null,null,null,null,742]
[null,null,null,null,null,null,null,null,null,null,null,743]
[null,null,null,null,null,null,null,null,null,null,null,744]
[null,null,null,null,null,null,null,null,null,null,null,745]
[null,null,null,null,null,null,null,null,null,null,null,746]
[null,null,null,null,null,null,null,null,null,null,null,747]
[null,null,null,null,null,null,null,null,null,null,null,748]
[null,null,null,null,null,null,null,null,null,null,null,749]
[null,null,null,null,null,null,null,null,null,null,null,750]
[null,null,null,null,null,null,null,null,null,null,null,751]
[null,null,null,null,null,null,null,null,null,null,null,752]
[null,null,null,null,null,null,null,null,null,null,null,753]
[null,null,null,null,null,null,null,null,null,null,null,754]
[null,null,null,null,null,null,null,null,null,null,null,755]
[null,null,null,null,null,null,null,null,null,null,null,756]
[null,null,null,null,null,null,null,null,null,null,null,757]
[null,null,null,null,null,null,null,null,null,null,null,758]
[null,null,null,null,null,null,null,null,null,null,null,759]
[null,null,null,null,null,null,null,null,null,null,null,760]
[null,null,null,null,null,null,null,null,null,null,null,761]
[null,null,null,null,null,null,null,null,null,null,null,762]
[null,null,null,null,null,null,null,null,null,null,null,763]
[null,null,null,null,null,null,null,null,null,null,null,764]
[null,null,null,null,null,null,null,null,null,null,null,765]
[null,null,null,null,null,null,null,null,null,null,null,766]
[null,null,null,null,null,null,null,null,null,null,null,767]
[null,null,null,null,null,null,null,null,null,null,null,768]
[null,null,null,null,null,null,null,null,null,null,null,769]
[null,null,null,null,null,null,null,null,null,null,null,{"$f":"ROW()-1","v":770}]
[null,null,null,null,null,null,null,null,null,null,null,771]
[null,null,null,null,null,null,null,null,null,null,null,772]
[null,null,null,null,null,null,null,null,null,null,null,773]
[null,null,null,null,null,null,null,null,null,null,null,774]
[null,null,null,null,null,null,null,null,null,null,null,775]
[null,null,null,null,null,null,null,null,null,null,null,776]
[null,null,null,null,null,null,null,null,null,null,null,777]
[null,null,null,null,null,null,null,null,null,null,null,778]
[null,null,null,null,null,null,null,null,null,null,null,779]
[null,null,null,null,null,null,null,null,null,null,null,780]
[null,null,null,null,null,null,null,null,null,null,null,781]
[null,null,null,null,null,null,null,null,null,null,null,782]
[null,null,null,null,null,null,null,null,null,null,null,783]
[null,null,null,null,null,null,null,null,null,null,null,784]
[null,null,null,null,null,null,null,null,null,null,null,785]
[null,null,null,null,null,null,null,null,null,null,null,786]
[null,null,null,null,null,null,null,null,null,null,null,787]
[null,null,null,null,null,null,null,null,null,null,null,788]
[null,null,null,null,null,null,null,null,null,null,null,789]
[null,null,null,null,null,null,null,null,null,null,null,790]
[null,null,null,null,null,null,null,null,null,null,null,791]
[null,null,null,null,null,null,null,null,null,null,null,792]
[null,null,null,null,null,null,null,null,null,null,null,793]
[null,null,null,null,null,null,null,null,null,null,null,794]
[null,null,null,null,null,null,null,null,null,null,null,795]
[null,null,null,null,null,null,null,null,null,null,null,796]
[null,null,null,null,null,null,null,null,null,null,null,797]
[null,null,null,null,null,null,null,null,null,null,null,798]
[null,null,null,null,null,null,null,null,null,null,null,799]
[null,null,null,null,null,null,null,null,null,null,null,800]
[null,null,null,null,null,null,null,null,null,null,null,801]
[null,null,null,null,null,null,null,null,null,null,null,802]
[null,null,null,null,null,null,null,null,null,null,null,803]
[null,null,null,null,null,null,null,null,null,null,null,804]
[null,null,null,null,null,null,null,null,null,null,null,805]
[null,null,null,null,null,null,null,null,null,null,null,806]
[null,null,null,null,null,null,null,null,null,null,null,807]
[null,null,null,null,null,null,null,null,null,null,null,808]
[null,null,null,null,null,null,null,null,null,null,null,809]
[null,null,null,null,null,null,null,null,null,null,null,810]
[null,null,null,null,null,null,null,null,null,null,null,811]
[null,null,null,null,null,null,null,null,null,null,null,812]
[null,null,null,null,null,null,null,null,null,null,null,813]
[null,null,null,null,null,null,null,null,null,null,null,814]
[null,null,null,null,null,null,null,null,null,null,null,815]
[null,null,null,null,null,null,null,null,null,null,null,816]
[null,null,null,null,null,null,null,null,null,null,null,817]
[null,null,null,null,null,null,null,null,null,null,null,818]
[null,null,null,null,null,null,null,null,null,null,null,819]
[null,null,null,null,null,null,null,null,null,null,null,820]
[null,null,null,null,null,null,null,null,null,null,null,821]
[null,null,null,null,null,null,null,null,null,null,null,822]
[null,null,null,null,null,null,null,null,null,null,null,823]
[null,null,null,null,null,null,null,null,null,null,null,824]
[null,null,null,null,null,null,null,null,null,null,null,825]
[null,null,null,null,null,null,null,null,null,null,null,826]
[null,null,null,null,null,null,null,null,null,null,null,827]
[null,null,null,null,null,null,null,null,null,null,null,828]
[null,null,null,null,null,null,null,null,null,null,null,829]
[null,null,null,null,null,null,null,null,null,null,null,830]
[null,null,null,null,null,null,null,null,null,null,null,831]
[null,null,null,null,null,null,null,null,null,null,null,832]
[null,null,null,null,null,null,null,null,null,null,null,833]
[null,null,null,null,null,null,null,null,null,null,null,{"$f":"ROW()-1","v":834}]
[null,null,null,null,null,null,null,null,null,null,null,835]
[null,null,null,null,null,null,null,null,null,null,null,836]
[null,null,null,null,null,null,null,null,null,null,null,837]
[null,null,null,null,null,null,null,null,null,null,null,838]
[null,null,null,null,null,null,null,null,null,null,null,839]
[null,null,null,null,null,null,null,null,null,null,null,840]
[null,null,null,null,null,null,null,null,null,null,null,841]
[null,null,null,null,null,null,null,null,null,null,null,842]
[null,null,null,null,null,null,null,null,null,null,null,843]
[null,null,null,null,null,null,null,null,null,null,null,844]
[null,null,null,null,null,null,null,null,null,null,null,845]
[null,null,null,null,null,null,null,null,null,null,null,846]
[null,null,null,null,null,null,null,null,null,null,null,847]
[null,null,null,null,null,null,null,null,null,null,null,848]
[null,null,null,null,null,null,null,null,null,null,null,849]
[null,null,null,null,null,null,null,null,null,null,null,850]
[null,null,null,null,null,null,null,null,null,null,null,851]
[null,null,null,null,null,null,null,null,null,null,null,852]
[null,null,null,null,null,null,null,null,null,null,null,853]
[null,null,null,null,null,null,null,null,null,null,null,854]
[null,null,null,null,null,null,null,null,null,null,null,855]
[null,null,null,null,null,null,null,null,null,null,null,856]
[null,null,null,null,null,null,null,null,null,null,null,857]
[null,null,null,null,null,null,null,null,null,null,null,858]
[null,null,null,null,null,null,null,null,null,null,null,859]
[null,null,null,null,null,null,null,null,null,null,null,860]
[null,null,null,null,null,null,null,null,null,null,null,861]
[null,null,null,null,null,null,null,null,null,null,null,862]
[null,null,null,null,null,null,null,null,null,null,null,863]
[null,null,null,null,null,null,null,null,null,null,null,864]
[null,null,null,null,null,null,null,null,null,null,null,865]
[null,null,null,null,null,null,null,null,null,null,null,866]
[null,null,null,null,null,null,null,null,null,null,null,867]
[null,null,null,null,null,null,null,null,null,null,null,868]
[null,null,null,null,null,null,null,null,null,null,null,869]
[null,null,null,null,null,null,null,null,null,null,null,870]
[null,null,null,null,null,null,null,null,null,null,null,871]
[null,null,null,null,null,null,null,null,null,null,null,872]
[null,null,null,null,null,null,null,null,null,null,null,873]
[null,null,null,null,null,null,null,null,null,null,null,874]
[null,null,null,null,null,null,null,null,null,null,null,875]
[null,null,null,null,null,null,null,null,null,null,null,876]
[null,null,null,null,null,null,null,null,null,null,null,877]
[null,null,null,null,null,null,null,null,null,null,null,878]
[null,null,null,null,null,null,null,null,null,null,null,879]
[null,null,null,null,null,null,null,null,null,null,null,880]
[null,null,null,null,null,null,null,null,null,null,null,881]
[null,null,null,null,null,null,null,null,null,null,null,882]
[null,null,null,null,null,null,null,null,null,null,null,883]
[null,null,null,null,null,null,null,null,null,null,null,884]
[null,null,null,null,null,null,null,null,null,null,null,885]
[null,null,null,null,null,null,null,null,null,null,null,886]
[null,null,null,null,null,null,null,null,null,null,null,887]
[null,null,null,null,null,null,null,null,null,null,null,888]
[null,null,null,null,null,null,null,null,null,null,null,889]
[null,null,null,null,null,null,null,null,null,null,null,890]
[null,null,null,null,null,null,null,null,null,null,null,891]
[null,null,null,null,null,null,null,null,null,null,null,892]
[null,null,null,null,null,null,null,null,null,null,null,893]
[null,null,null,null,null,null,null,null,null,null,null,894]
[null,null,null,null,null,null,null,null,null,null,null,895]
[null,null,null,null,null,null,null,null,null,null,null,896]
[null,null,null,null,null,null,null,null,null,null,null,897]
[null,null,null,null,null,null,null,null,null,null,null,{"$f":"ROW()-1","v":898}]
[null,null,null,null,null,null,null,null,null,null,null,899]
[null,null,null,null,null,null,null,null,null,null,null,900]
[null,null,null,null,null,null,null,null,null,null,null,901]
[null,null,null,null,null,null,null,null,null,null,null,902]
[null,null,null,null,null,null,null,null,null,null,null,903]
[null,null,null,null,null,null,null,null,null,null,null,904]
[null,null,null,null,null,null,null,null,null,null,null,905]
[null,null,null,null,null,null,null,null,null,null,null,906]
[null,null,null,null,null,null,null,null,null,null,null,907]
[null,null,null,null,null,null,null,null,null,null,null,908]
[null,null,null,null,null,null,null,null,null,null,null,909]
[null,null,null,null,null,null,null,null,null,null,null,910]
[null,null,null,null,null,null,null,null,null,null,null,911]
[null,null,null,null,null,null,null,null,null,null,null,912]
[null,null,null,null,null,null,null,null,null,null,null,913]
[null,null,null,null,null,null,null,null,null,null,null,914]
[null,null,null,null,null,null,null,null,null,null,null,915]
[null,null,null,null,null,null,null,null,null,null,null,916]
[null,null,null,null,null,null,null,null,null,null,null,917]
[null,null,null,null,null,null,null,null,null,null,null,918]
[null,null,null,null,null,null,null,null,null,null,null,919]
[null,null,null,null,null,null,null,null,null,null,null,920]
[null,null,null,null,null,null,null,null,null,null,null,921]
[null,null,null,null,null,null,null,null,null,null,null,922]
[null,null,null,null,null,null,null,null,null,null,null,923]
[null,null,null,null,null,null,null,null,null,null,null,924]
[null,null,null,null,null,null,null,null,null,null,null,925]
[null,null,null,null,null,null,null,null,null,null,null,926]
[null,null,null,null,null,null,null,null,null,null,null,927]
[null,null,null,null,null,null,null,null,null,null,null,928]
[null,null,null,null,null,null,null,null,null,null,null,929]
[null,null,null,null,null,null,null,null,null,null,null,930]
[null,null,null,null,null,null,null,null,null,null,null,931]
[null,null,null,null,null,null,null,null,null,null,null,932]
[null,null,null,null,null,null,null,null,null,null,null,933]
[null,null,null,null,null,null,null,null,null,null,null,934]
[null,null,null,null,null,null,null,null,null,null,null,935]
[null,null,null,null,null,null,null,null,null,null,null,936]
[null,null,null,null,null,null,null,null,null,null,null,937]
[null,null,null,null,null,null,null,null,null,null,null,938]
[null,null,null,null,null,null,null,null,null,null,null,939]
[null,null,null,null,null,null,null,null,null,null,null,940]
[null,null,null,null,null,null,null,null,null,null,null,941]
[null,null,null,null,null,null,null,null,null,null,null,942]
[null,null,null,null,null,null,null,null,null,null,null,943]
[null,null,null,null,null,null,null,null,null,null,null,944]
[null,null,null,null,null,null,null,null,null,null,null,945]
[null,null,null,null,null,null,null,null,null,null,null,946]
[null,null,null,null,null,null,null,null,null,null,null,947]
[null,null,null,null,null,null,null,null,null,null,null,948]
[null,null,null,null,null,null,null,null,null,null,null,949]
[null,null,null,null,null,null,null,null,null,null,null,950]
[null,null,null,null,null,null,null,null,null,null,null,951]
[null,null,null,null,null,null,null,null,null,null,null,952]
[null,null,null,null,null,null,null,null,null,null,null,953]
[null,null,null,null,null,null,null,null,null,null,null,954]
[null,null,null,null,null,null,null,null,null,null,null,955]
[null,null,null,null,null,null,null,null,null,null,null,956]
[null,null,null,null,null,null,null,null,null,null,null,957]
[null,null,null,null,null,null,null,null,null,null,null,958]
[null,null,null,null,null,null,null,null,null,null,null,959]
[null,null,null,null,null,null,null,null,null,null,null,960]
[null,null,null,null,null,null,null,null,null,null,null,961]
[null,null,null,null,null,null,null,null,null,null,null,{"$f":"ROW()-1","v":962}]
[null,null,null,null,null,null,null,null,null,null,null,963]
[null,null,null,null,null,null,null,null,null,null,null,964]
[null,null,null,null,null,null,null,null,null,null,null,965]
[null,null,null,null,null,null,null,null,null,null,null,966]
[null,null,null,null,null,null,null,null,null,null,null,967]
[null,null,null,null,null,null,null,null,null,null,null,968]
[null,null,null,null,null,null,null,null,null,null,null,969]
[null,null,null,null,null,null,null,null,null,null,null,970]
[null,null,null,null,null,null,null,null,null,null,null,971]
[null,null,null,null,null,null,null,null,null,null,null,972]
[null,null,null,null,null,null,null,null,null,null,null,973]
[null,null,null,null,null,null,null,null,null,null,null,974]
[null,null,null,null,null,null,null,null,null,null,null,975]
[null,null,null,null,null,null,null,null,null,null,null,976]
[null,null,null,null,null,null,null,null,null,null,null,977]
[null,null,null,null,null,null,null,null,null,null,null,978]
[null,null,null,null,null,null,null,null,null,null,null,979]
[null,null,null,null,null,null,null,null,null,null,null,980]
[null,null,null,null,null,null,null,null,null,null,null,981]
[null,null,null,null,null,null,null,null,null,null,null,982]
[null,null,null,null,null,null,null,null,null,null,null,983]
[null,null,null,null,null,null,null,null,null,null,null,984]
[null,null,null,null,null,null,null,null,null,null,null,985]
[null,null,null,null,null,null,null,null,null,null,null,986]
[null,null,null,null,null,null,null,null,null,null,null,987]
[null,null,null,null,null,null,null,null,null,null,null,988]
[null,null,null,null,null,null,null,null,null,null,null,989]
[null,null,null,null,null,null,null,null,null,null,null,990]
[null,null,null,null,null,null,null,null,null,null,null,991]
[null,null,null,null,null,null,null,null,null,null,null,992]
[null,null,null,null,null,null,null,null,null,null,null,993]
[null,null,null,null,null,null,null,null,null,null,null,994]
[null,null,null,null,null,null,null,null,null,null,null,995]
[null,null,null,null,null,null,null,null,null,null,null,996]
[null,null,null,null,null,null,null,null,null,null,null,997]
[null,null,null,null,null,null,null,null,null,null,null,998]
[null,null,null,null,null,null,null,null,null,null,null,999]
[null,null,null,null,null,null,null,null,null,null,null,1000]
[null,null,null,null,null,null,null,null,null,null,null,1001]
[null,null,null,null,null,null,null,null,null,null,null,1002]
[null,null,null,null,null,null,null,null,null,null,null,1003]
[null,null,null,null,null,null,null,null,null,null,null,1004]
[null,null,null,null,null,null,null,null,null,null,null,1005]
[null,null,null,null,null,null,null,null,null,null,null,1006]
[null,null,null,null,null,null,null,null,null,null,null,1007]
[null,null,null,null,null,null,null,null,null,null,null,1008]
[null,null,null,null,null,null,null,null,null,null,null,1009]
[null,null,null,null,null,null,null,null,null,null,null,1010]
[null,null,null,null,null,null,null,null,null,null,null,1011]
[null,null,null,null,null,null,null,null,null,null,null,1012]
[null,null,null,null,null,null,null,null,null,null,null,1013]
[null,null,null,null,null,null,null,null,null,null,null,1014]
[null,null,null,null,null,null,null,null,null,null,null,1015]
[null,null,null,null,null,null,null,null,null,null,null,1016]
[null,null,null,null,null,null,null,null,null,null,null,1017]
[null,null,null,null,null,null,null,null,null,null,null,1018]
[null,null,null,null,null,null,null,null,null,null,null,1019]
[null,null,null,null,null,null,null,null,null,null,null,1020]
[null,null,null,null,null,null,null,null,null,null,null,1021]
[null,null,null,null,null,null,null,null,null,null,null,1022]
[null,null,null,null,null,null,null,null,null,null,null,1023]
[null,null,null,null,null,null,null,null,null,null,null,1024]
[null,null,null,null,null,null,null,null,null,null,null,1025]
[null,null,null,null,null,null,null,null,null,null,null,{"$f":"ROW()-1","v":1026}]
[null,null,null,null,null,null,null,null,null,null,null,1027]
[null,null,null,null,null,null,null,null,null,null,null,1028]
[null,null,null,null,null,null,null,null,null,null,null,1029]
[null,null,null,null,null,null,null,null,null,null,null,1030]
[null,null,null,null,null,null,null,null,null,null,null,1031]
[null,null,null,null,null,null,null,null,null,null,null,1032]
[null,null,null,null,null,null,null,null,null,null,null,1033]
[null,null,null,null,null,null,null,null,null,null,null,1034]
[null,null,null,null,null,null,null,null,null,null,null,1035]
[null,null,null,null,null,null,null,null,null,null,null,1036]
[null,null,null,null,null,null,null,null,null,null,null,1037]
[null,null,null,null,null,null,null,null,null,null,null,1038]
[null,null,null,null,null,null,null,null,null,null,null,1039]
[null,null,null,null,null,null,null,null,null,null,null,1040]
[null,null,null,null,null,null,null,null,null,null,null,1041]
[null,null,null,null,null,null,null,null,null,null,null,1042]
[null,null,null,null,null,null,null,null,null,null,null,1043]
[null,null,null,null,null,null,null,null,null,null,null,1044]
[null,null,null,null,null,null,null,null,null,null,null,1045]
[null,null,null,null,null,null,null,null,null,null,null,1046]
[null,null,null,null,null,null,null,null,null,null,null,1047]
[null,null,null,null,null,null,null,null,null,null,null,1048]
[null,null,null,null,null,null,null,null,null,null,null,1049]
[null,null,null,null,null,null,null,null,null,null,null,1050]
[null,null,null,null,null,null,null,null,null,null,null,1051]
[null,null,null,null,null,null,null,null,null,null,null,1052]
[null,null,null,null,null,null,null,null,null,null,null,1053]
[null,null,null,null,null,null,null,null,null,null,null,1054]
[null,null,null,null,null,null,null,null,null,null,null,1055]
[null,null,null,null,null,null,null,null,null,null,null,1056]
[null,null,null,null,null,null,null,null,null,null,null,1057]
[null,null,null,null,null,null,null,null,null,null,null,1058]
[null,null,null,null,null,null,null,null,null,null,null,1059]
[null,null,null,null,null,null,null,null,null,null,null,1060]
[null,null,null,null,null,null,null,null,null,null,null,1061]
[null,null,null,null,null,null,null,null,null,null,null,1062]
[null,null,null,null,null,null,null,null,null,null,null,1063]
[null,null,null,null,null,null,null,null,null,null,null,1064]
[null,null,null,null,null,null,null,null,null,null,null,1065]
[null,null,null,null,null,null,null,null,null,null,null,1066]
[null,null,null,null,null,null,null,null,null,null,null,1067]
[null,null,null,null,null,null,null,null,null,null,null,1068]
[null,null,null,null,null,null,null,null,null,null,null,1069]
[null,null,null,null,null,null,null,null,null,null,null,1070]
[null,null,null,null,null,null,null,null,null,null,null,1071]
[null,null,null,null,null,null,null,null,null,null,null,1072]
[null,null,null,null,null,null,null,null,null,null,null,1073]
[null,null,null,null,null,null,null,null,null,null,null,1074]
[null,null,null,null,null,null,null,null,null,null,null,1075]
[null,null,null,null,null,null,null,null,null,null,null,1076]
[null,null,null,null,null,null,null,null,null,null,null,1077]
[null,null,null,null,null,null,null,null,null,null,null,1078]
[null,null,null,null,null,null,null,null,null,null,null,1079]
[null,null,null,null,null,null,null,null,null,null,null,1080]
[null,null,null,null,null,null,null,null,null,null,null,1081]
[null,null,null,null,null,null,null,null,null,null,null,1082]
[null,null,null,null,null,null,null,null,null,null,null,1083]
[null,null,null,null,null,null,null,null,null,null,null,1084]
[null,null,null,null,null,null,null,null,null,null,null,1085]
[null,null,null,null,null,null,null,null,null,null,null,1086]
[null,null,null,null,null,null,null,null,null,null,null,1087]
[null,null,null,null,null,null,null,null,null,null,null,1088]
[null,null,null,null,null,null,null,null,null,null,null,1089]
[null,null,null,null,null,null,null,null,null,null,null,{"$f":"ROW()-1","v":1090}]
[null,null,null,null,null,null,null,null,null,null,null,1091]
[null,null,null,null,null,null,null,null,null,null,null,1092]
[null,null,null,null,null,null,null,null,null,null,null,1093]
[null,null,null,null,null,null,null,null,null,null,null,1094]
[null,null,null,null,null,null,null,null,null,null,null,1095]
[null,null,null,null,null,null,null,null,null,null,null,1096]
[null,null,null,null,null,null,null,null,null,null,null,1097]
[null,null,null,null,null,null,null,null,null,null,null,1098]
[null,null,null,null,null,null,null,null,null,null,null,1099]
[null,null,null,null,null,null,null,null,null,null,null,1100]
[null,null,null,null,null,null,null,null,null,null,null,1101]
[null,null,null,null,null,null,null,null,null,null,null,1102]
[null,null,null,null,null,null,null,null,null,null,null,1103]
[null,null,null,null,null,null,null,null,null,null,null,1104]
[null,null,null,null,null,null,null,null,null,null,null,1105]
[null,null,null,null,null,null,null,null,null,null,null,1106]
[null,null,null,null,null,null,null,null,null,null,null,1107]
[null,null,null,null,null,null,null,null,null,null,null,1108]
[null,null,null,null,null,null,null,null,null,null,null,1109]
[null,null,null,null,null,null,null,null,null,null,null,1110]
[null,null,null,null,null,null,null,null,null,null,null,1111]
[null,null,null,null,null,null,null,null,null,null,null,1112]
[null,null,null,null,null,null,null,null,null,null,null,1113]
[null,null,null,null,null,null,null,null,null,null,null,1114]
[null,null,null,null,null,null,null,null,null,null,null,1115]
[null,null,null,null,null,null,null,null,null,null,null,1116]
[null,null,null,null,null,null,null,null,null,null,null,1117]
[null,null,null,null,null,null,null,null,null,null,null,1118]
[null,null,null,null,null,null,null,null,null,null,null,1119]
[null,null,null,null,null,null,null,null,null,null,null,1120]
[null,null,null,null,null,null,null,null,null,null,null,1121]
[null,null,null,null,null,null,null,null,null,null,null,1122]
[null,null,null,null,null,null,null,null,null,null,null,1123]
[null,null,null,null,null,null,null,null,null,null,null,1124]
[null,null,null,null,null,null,null,null,null,null,null,1125]
[null,null,null,null,null,null,null,null,null,null,null,1126]
[null,null,null,null,null,null,null,null,null,null,null,1127]
[null,null,null,null,null,null,null,null,null,null,null,1128]
[null,null,null,null,null,null,null,null,null,null,null,1129]
[null,null,null,null,null,null,null,null,null,null,null,1130]
[null,null,null,null,null,null,null,null,null,null,null,1131]
[null,null,null,null,null,null,null,null,null,null,null,1132]
[null,null,null,null,null,null,null,null,null,null,null,1133]
[null,null,null,null,null,null,null,null,null,null,null,1134]
[null,null,null,null,null,null,null,null,null,null,null,1135]
[null,null,null,null,null,null,null,null,null,null,null,1136]
[null,null,null,null,null,null,null,null,null,null,null,1137]
[null,null,null,null,null,null,null,null,null,null,null,1138]
[null,null,null,null,null,null,null,null,null,null,null,1139]
[null,null,null,null,null,null,null,null,null,null,null,1140]
[null,null,null,null,null,null,null,null,null,null,null,1141]
[null,null,null,null,null,null,null,null,null,null,null,1142]
[null,null,null,null,null,null,null,null,null,null,null,1143]
[null,null,null,null,null,null,null,null,null,null,null,1144]
[null,null,null,null,null,null,null,null,null,null,null,1145]
[null,null,null,null,null,null,null,null,null,null,null,1146]
[null,null,null,null,null,null,null,null,null,null,null,1147]
[null,null,null,null,null,null,null,null,null,null,null,1148]
[null,null,null,null,null,null,null,null,null,null,null,1149]
[null,null,null,null,null,null,null,null,null,null,null,1150]
[null,null,null,null,null,null,null,null,null,null,null,1151]
[null,null,null,null,null,null,null,null,null,null,null,1152]
[null,null,null,null,null,null,null,null,null,null,null,1153]
[null,null,null,null,null,null,null,null,null,null,null,{"$f":"ROW()-1","v":1154}]
[null,null,null,null,null,null,null,null,null,null,null,1155]
[null,null,null,null,null,null,null,null,null,null,null,1156]
[null,null,null,null,null,null,null,null,null,null,null,1157]
[null,null,null,null,null,null,null,null,null,null,null,1158]
[null,null,null,null,null,null,null,null,null,null,null,1159]
[null,null,null,null,null,null,null,null,null,null,null,1160]
[null,null,null,null,null,null,null,null,null,null,null,1161]
[null,null,null,null,null,null,null,null,null,null,null,1162]
[null,null,null,null,null,null,null,null,null,null,null,1163]
[null,null,null,null,null,null,null,null,null,null,null,1164]
[null,null,null,null,null,null,null,null,null,null,null,1165]
[null,null,null,null,null,null,null,null,null,null,null,1166]
[null,null,null,null,null,null,null,null,null,null,null,1167]
[null,null,null,null,null,null,null,null,null,null,null,1168]
[null,null,null,null,null,null,null,null,null,null,null,1169]
[null,null,null,null,null,null,null,null,null,null,null,1170]
[null,null,null,null,null,null,null,null,null,null,null,1171]
[null,null,null,null,null,null,null,null,null,null,null,1172]
[null,null,null,null,null,null,null,null,null,null,null,1173]
[null,null,null,null,null,null,null,null,null,null,null,1174]
[null,null,null,null,null,null,null,null,null,null,null,1175]
[null,null,null,null,null,null,null,null,null,null,null,1176]
[null,null,null,null,null,null,null,null,null,null,null,1177]
[null,null,null,null,null,null,null,null,null,null,null,1178]
[null,null,null,null,null,null,null,null,null,null,null,1179]
[null,null,null,null,null,null,null,null,null,null,null,1180]
[null,null,null,null,null,null,null,null,null,null,null,1181]
[null,null,null,null,null,null,null,null,null,null,null,1182]
[null,null,null,null,null,null,null,null,null,null,null,1183]
[null,null,null,null,null,null,null,null,null,null,null,1184]
[null,null,null,null,null,null,null,null,null,null,null,1185]
[null,null,null,null,null,null,null,null,null,null,null,1186]
[null,null,null,null,null,null,null,null,null,null,null,1187]
[null,null,null,null,null,null,null,null,null,null,null,1188]
[null,null,null,null,null,null,null,null,null,null,null,1189]
[null,null,null,null,null,null,null,null,null,null,null,1190]
[null,null,null,null,null,null,null,null,null,null,null,1191]
[null,null,null,null,null,null,null,null,null,null,null,1192]
[null,null,null,null,null,null,null,null,null,null,null,1193]
[null,null,null,null,null,null,null,null,null,null,null,1194]
[null,null,null,null,null,null,null,null,null,null,null,1195]
[null,null,null,null,null,null,null,null,null,null,null,1196]
[null,null,null,null,null,null,null,null,null,null,null,1197]
[null,null,null,null,null,null,null,null,null,null,null,1198]
[null,null,null,null,null,null,null,null,null,null,null,1199]
[null,null,null,null,null,null,null,null,null,null,null,1200]
[null,null,null,null,null,null,null,null,null,null,null,1201]
[null,null,null,null,null,null,null,null,null,null,null,1202]
[null,null,null,null,null,null,null,null,null,null,null,1203]
[null,null,null,null,null,null,null,null,null,null,null,1204]
[null,null,null,null,null,null,null,null,null,null,null,1205]
[null,null,null,null,null,null,null,null,null,null,null,1206]
[null,null,null,null,null,null,null,null,null,null,null,1207]
[null,null,null,null,null,null,null,null,null,null,null,1208]
[null,null,null,null,null,null,null,null,null,null,null,1209]
[null,null,null,null,null,null,null,null,null,null,null,1210]
[null,null,null,null,null,null,null,null,null,null,null,1211]
[null,null,null,null,null,null,null,null,null,null,null,1212]
[null,null,null,null,null,null,null,null,null,null,null,1213]
[null,null,null,null,null,null,null,null,null,null,null,1214]
[null,null,null,null,null,null,null,null,null,null,null,1215]
[null,null,null,null,null,null,null,null,null,null,null,1216]
[null,null,null,null,null,null,null,null,null,null,null,1217]
[null,null,null,null,null,null,null,null,null,null,null,{"$f":"ROW()-1","v":1218}]
[null,null,null,null,null,null,null,null,null,null,null,1219]
[null,null,null,null,null,null,null,null,null,null,null,1220]
[null,null,null,null,null,null,null,null,null,null,null,1221]
[null,null,null,null,null,null,null,null,null,null,null,1222]
[null,null,null,null,null,null,null,null,null,null,null,1223]
[null,null,null,null,null,null,null,null,null,null,null,1224]
[null,null,null,null,null,null,null,null,null,null,null,1225]
[null,null,null,null,null,null,null,null,null,null,null,1226]
[null,null,null,null,null,null,null,null,null,null,null,1227]
[null,null,null,null,null,null,null,null,null,null,null,1228]
[null,null,null,null,null,null,null,null,null,null,null,1229]
[null,null,null,null,null,null,null,null,null,null,null,1230]
[null,null,null,null,null,null,null,null,null,null,null,1231]
[null,null,null,null,null,null,null,null,null,null,null,1232]
[null,null,null,null,null,null,null,null,null,null,null,1233]
[null,null,null,null,null,null,null,null,null,null,null,1234]
[null,null,null,null,null,null,null,null,null,null,null,1235]
[null,null,null,null,null,null,null,null,null,null,null,1236]
[null,null,null,null,null,null,null,null,null,null,null,1237]
[null,null,null,null,null,null,null,null,null,null,null,1238]
[null,null,null,null,null,null,null,null,null,null,null,1239]
[null,null,null,null,null,null,null,null,null,null,null,1240]
[null,null,null,null,null,null,null,null,null,null,null,1241]
[null,null,null,null,null,null,null,null,null,null,null,1242]
[null,null,null,null,null,null,null,null,null,null,null,1243]
[null,null,null,null,null,null,null,null,null,null,null,1244]
[null,null,null,null,null,null,null,null,null,null,null,1245]
[null,null,null,null,null,null,null,null,null,null,null,1246]
[null,null,null,null,null,null,null,null,null,null,null,1247]
[null,null,null,null,null,null,null,null,null,null,null,1248]
[null,null,null,null,null,null,null,null,null,null,null,1249]
[null,null,null,null,null,null,null,null,null,null,null,1250]
[null,null,null,null,null,null,null,null,null,null,null,1251]
[null,null,null,null,null,null,null,null,null,null,null,1252]
[null,null,null,null,null,null,null,null,null,null,null,1253]
[null,null,null,null,null,null,null,null,null,null,null,1254]
[null,null,null,null,null,null,null,null,null,null,null,1255]
[null,null,null,null,null,null,null,null,null,null,null,1256]
[null,null,null,null,null,null,null,null,null,null,null,1257]
[null,null,null,null,null,null,null,null,null,null,null,1258]
[null,null,null,null,null,null,null,null,null,null,null,1259]
[null,null,null,null,null,null,null,null,null,null,null,1260]
[null,null,null,null,null,null,null,null,null,null,null,1261]
[null,null,null,null,null,null,null,null,null,null,null,1262]
[null,null,null,null,null,null,null,null,null,null,null,1263]
[null,null,null,null,null,null,null,null,null,null,null,1264]
[null,null,null,null,null,null,null,null,null,null,null,1265]
[null,null,null,null,null,null,null,null,null,null,null,1266]
[null,null,null,null,null,null,null,null,null,null,null,1267]
[null,null,null,null,null,null,null,null,null,null,null,1268]
[null,null,null,null,null,null,null,null,null,null,null,1269]
[null,null,null,null,null,null,null,null,null,null,null,1270]
[null,null,null,null,null,null,null,null,null,null,null,1271]
[null,null,null,null,null,null,null,null,null,null,null,1272]
[null,null,null,null,null,null,null,null,null,null,null,1273]
[null,null,null,null,null,null,null,null,null,null,null,1274]
[null,null,null,null,null,null,null,null,null,null,null,1275]
[null,null,null,null,null,null,null,null,null,null,null,1276]
[null,null,null,null,null,null,null,null,null,null,null,1277]
[null,null,null,null,null,null,null,null,null,null,null,1278]
[null,null,null,null,null,null,null,null,null,null,null,1279]
[null,null,null,null,null,null,null,null,null,null,null,1280]
[null,null,null,null,null,null,null,null,null,null,null,1281]
[null,null,null,null,null,null,null,null,null,null,null,{"$f":"ROW()-1","v":1282}]
[null,null,null,null,null,null,null,null,null,null,null,1283]
[null,null,null,null,null,null,null,null,null,null,null,1284]
[null,null,null,null,null,null,null,null,null,null,null,1285]
[null,null,null,null,null,null,null,null,null,null,null,1286]
[null,null,null,null,null,null,null,null,null,null,null,1287]
[null,null,null,null,null,null,null,null,null,null,null,1288]
[null,null,null,null,null,null,null,null,null,null,null,1289]
[null,null,null,null,null,null,null,null,null,null,null,1290]
[null,null,null,null,null,null,null,null,null,null,null,1291]
[null,null,null,null,null,null,null,null,null,null,null,1292]
[null,null,null,null,null,null,null,null,null,null,null,1293]
[null,null,null,null,null,null,null,null,null,null,null,1294]
[null,null,null,null,null,null,null,null,null,null,null,1295]
[null,null,null,null,null,null,null,null,null,null,null,1296]
[null,null,null,null,null,null,null,null,null,null,null,1297]
[null,null,null,null,null,null,null,null,null,null,null,1298]
[null,null,null,null,null,null,null,null,null,null,null,1299]
[null,null,null,null,null,null,null,null,null,null,null,1300]
[null,null,null,null,null,null,null,null,null,null,null,1301]
[null,null,null,null,null,null,null,null,null,null,null,1302]
[null,null,null,null,null,null,null,null,null,null,null,1303]
[null,null,null,null,null,null,null,null,null,null,null,1304]
[null,null,null,null,null,null,null,null,null,null,null,1305]
[null,null,null,null,null,null,null,null,null,null,null,1306]
[null,null,null,null,null,null,null,null,null,null,null,1307]
[null,null,null,null,null,null,null,null,null,null,null,1308]
[null,null,null,null,null,null,null,null,null,null,null,1309]
[null,null,null,null,null,null,null,null,null,null,null,1310]
[null,null,null,null,null,null,null,null,null,null,null,1311]
[null,null,null,null,null,null,null,null,null,null,null,1312]
[null,null,null,null,null,null,null,null,null,null,null,1313]
[null,null,null,null,null,null,null,null,null,null,null,1314]
[null,null,null,null,null,null,null,null,null,null,null,1315]
[null,null,null,null,null,null,null,null,null,null,null,1316]
[null,null,null,null,null,null,null,null,null,null,null,1317]
[null,null,null,null,null,null,null,null,null,null,null,1318]
[null,null,null,null,null,null,null,null,null,null,null,1319]
[null,null,null,null,null,null,null,null,null,null,null,1320]
[null,null,null,null,null,null,null,null,null,null,null,1321]
[null,null,null,null,null,null,null,null,null,null,null,1322]
[null,null,null,null,null,null,null,null,null,null,null,1323]
[null,null,null,null,null,null,null,null,null,null,null,1324]
[null,null,null,null,null,null,null,null,null,null,null,1325]
[null,null,null,null,null,null,null,null,null,null,null,1326]
[null,null,null,null,null,null,null,null,null,null,null,1327]
[null,null,null,null,null,null,null,null,null,null,null,1328]
[null,null,null,null,null,null,null,null,null,null,null,1329]
[null,null,null,null,null,null,null,null,null,null,null,1330]
[null,null,null,null,null,null,null,null,null,null,null,1331]
[null,null,null,null,null,null,null,null,null,null,null,1332]
[null,null,null,null,null,null,null,null,null,null,null,1333]
[null,null,null,null,null,null,null,null,null,null,null,1334]
[null,null,null,null,null,null,null,null,null,null,null,1335]
[null,null,null,null,null,null,null,null,null,null,null,1336]
[null,null,null,null,null,null,null,null,null,null,null,1337]
[null,null,null,null,null,null,null,null,null,null,null,1338]
[null,null,null,null,null,null,null,null,null,null,null,1339]
[null,null,null,null,null,null,null,null,null,null,null,1340]
[null,null,null,null,null,null,null,null,null,null,null,1341]
[null,null,null,null,null,null,null,null,null,null,null,1342]
[null,null,null,null,null,null,null,null,null,null,null,1343]
[null,null,null,null,null,null,null,null,null,null,null,1344]
[null,null,null,null,null,null,null,null,null,null,null,1345]
[null,null,null,null,null,null,null,null,null,null,null,{"$f":"ROW()-1","v":1346}]
[null,null,null,null,null,null,null,null,null,null,null,1347]
[null,null,null,null,null,null,null,null,null,null,null,1348]
[null,null,null,null,null,null,null,null,null,null,null,1349]
[null,null,null,null,null,null,null,null,null,null,null,1350]
[null,null,null,null,null,null,null,null,null,null,null,1351]
[null,null,null,null,null,null,null,null,null,null,null,1352]
[null,null,null,null,null,null,null,null,null,null,null,1353]
[null,null,null,null,null,null,null,null,null,null,null,1354]
[null,null,null,null,null,null,null,null,null,null,null,1355]
[null,null,null,null,null,null,null,null,null,null,null,1356]
[null,null,null,null,null,null,null,null,null,null,null,1357]
[null,null,null,null,null,null,null,null,null,null,null,1358]
[null,null,null,null,null,null,null,null,null,null,null,1359]
[null,null,null,null,null,null,null,null,null,null,null,1360]
[null,null,null,null,null,null,null,null,null,null,null,1361]
[null,null,null,null,null,null,null,null,null,null,null,1362]
[null,null,null,null,null,null,null,null,null,null,null,1363]
[null,null,null,null,null,null,null,null,null,null,null,1364]
[null,null,null,null,null,null,null,null,null,null,null,1365]
[null,null,null,null,null,null,null,null,null,null,null,1366]
[null,null,null,null,null,null,null,null,null,null,null,1367]
[null,null,null,null,null,null,null,null,null,null,null,1368]
[null,null,null,null,null,null,null,null,null,null,null,1369]
[null,null,null,null,null,null,null,null,null,null,null,1370]
[null,null,null,null,null,null,null,null,null,null,null,1371]
[null,null,null,null,null,null,null,null,null,null,null,1372]
[null,null,null,null,null,null,null,null,null,null,null,1373]
[null,null,null,null,null,null,null,null,null,null,null,1374]
[null,null,null,null,null,null,null,null,null,null,null,1375]
[null,null,null,null,null,null,null,null,null,null,null,1376]
[null,null,null,null,null,null,null,null,null,null,null,1377]
[null,null,null,null,null,null,null,null,null,null,null,1378]
[null,null,null,null,null,null,null,null,null,null,null,1379]
[null,null,null,null,null,null,null,null,null,null,null,1380]
[null,null,null,null,null,null,null,null,null,null,null,1381]
[null,null,null,null,null,null,null,null,null,null,null,1382]
[null,null,null,null,null,null,null,null,null,null,null,1383]
[null,null,null,null,null,null,null,null,null,null,null,1384]
[null,null,null,null,null,null,null,null,null,null,null,1385]
[null,null,null,null,null,null,null,null,null,null,null,1386]
[null,null,null,null,null,null,null,null,null,null,null,1387]
[null,null,null,null,null,null,null,null,null,null,null,1388]
[null,null,null,null,null,null,null,null,null,null,null,1389]
[null,null,null,null,null,null,null,null,null,null,null,1390]
[null,null,null,null,null,null,null,null,null,null,null,1391]
[null,null,null,null,null,null,null,null,null,null,null,1392]
[null,null,null,null,null,null,null,null,null,null,null,1393]
[null,null,null,null,null,null,null,null,null,null,null,1394]
[null,null,null,null,null,null,null,null,null,null,null,1395]
[null,null,null,null,null,null,null,null,null,null,null,1396]
[null,null,null,null,null,null,null,null,null,null,null,1397]
[null,null,null,null,null,null,null,null,null,null,null,1398]
[null,null,null,null,null,null,null,null,null,null,null,1399]
[null,null,null,null,null,null,null,null,null,null,null,1400]
[null,null,null,null,null,null,null,null,null,null,null,1401]
[null,null,null,null,null,null,null,null,null,null,null,1402]
[null,null,null,null,null,null,null,null,null,null,null,1403]
[null,null,null,null,null,null,null,null,null,null,null,1404]
[null,null,null,null,null,null,null,null,null,null,null,1405]
[null,null,null,null,null,null,null,null,null,null,null,1406]
[null,null,null,null,null,null,null,null,null,null,null,1407]
[null,null,null,null,null,null,null,null,null,null,null,1408]
[null,null,null,null,null,null,null,null,null,null,null,1409]
[null,null,null,null,null,null,null,null,null,null,null,{"$f":"ROW()-1","v":1410}]
[null,null,null,null,null,null,null,null,null,null,null,1411]
[null,null,null,null,null,null,null,null,null,null,null,1412]
[null,null,null,null,null,null,null,null,null,null,null,1413]
[null,null,null,null,null,null,null,null,null,null,null,1414]
[null,null,null,null,null,null,null,null,null,null,null,1415]
[null,null,null,null,null,null,null,null,null,null,null,1416]
[null,null,null,null,null,null,null,null,null,null,null,1417]
[null,null,null,null,null,null,null,null,null,null,null,1418]
[null,null,null,null,null,null,null,null,null,null,null,1419]
[null,null,null,null,null,null,null,null,null,null,null,1420]
[null,null,null,null,null,null,null,null,null,null,null,1421]
[null,null,null,null,null,null,null,null,null,null,null,1422]
[null,null,null,null,null,null,null,null,null,null,null,1423]
[null,null,null,null,null,null,null,null,null,null,null,1424]
[null,null,null,null,null,null,null,null,null,null,null,1425]
[null,null,null,null,null,null,null,null,null,null,null,1426]
[null,null,null,null,null,null,null,null,null,null,null,1427]
[null,null,null,null,null,null,null,null,null,null,null,1428]
[null,null,null,null,null,null,null,null,null,null,null,1429]
[null,null,null,null,null,null,null,null,null,null,null,1430]
[null,null,null,null,null,null,null,null,null,null,null,1431]
[null,null,null,null,null,null,null,null,null,null,null,1432]
[null,null,null,null,null,null,null,null,null,null,null,1433]
[null,null,null,null,null,null,null,null,null,null,null,1434]
[null,null,null,null,null,null,null,null,null,null,null,1435]
[null,null,null,null,null,null,null,null,null,null,null,1436]
[null,null,null,null,null,null,null,null,null,null,null,1437]
[null,null,null,null,null,null,null,null,null,null,null,1438]
[null,null,null,null,null,null,null,null,null,null,null,1439]
[null,null,null,null,null,null,null,null,null,null,null,1440]
[null,null,null,null,null,null,null,null,null,null,null,1441]
[null,null,null,null,null,null,null,null,null,null,null,1442]
[null,null,null,null,null,null,null,null,null,null,null,1443]
[null,null,null,null,null,null,null,null,null,null,null,1444]
[null,null,null,null,null,null,null,null,null,null,null,1445]
[null,null,null,null,null,null,null,null,null,null,null,1446]
[null,null,null,null,null,null,null,null,null,null,null,1447]
[null,null,null,null,null,null,null,null,null,null,null,1448]
[null,null,null,null,null,null,null,null,null,null,null,1449]
[null,null,null,null,null,null,null,null,null,null,null,1450]
[null,null,null,null,null,null,null,null,null,null,null,1451]
[null,null,null,null,null,null,null,null,null,null,null,1452]
[null,null,null,null,null,null,null,null,null,null,null,1453]
[null,null,null,null,null,null,null,null,null,null,null,1454]
[null,null,null,null,null,null,null,null,null,null,null,1455]
[null,null,null,null,null,null,null,null,null,null,null,1456]
[null,null,null,null,null,null,null,null,null,null,null,1457]
[null,null,null,null,null,null,null,null,null,null,null,1458]
[null,null,null,null,null,null,null,null,null,null,null,1459]
[null,null,null,null,null,null,null,null,null,null,null,1460]
[null,null,null,null,null,null,null,null,null,null,null,1461]
[null,null,null,null,null,null,null,null,null,null,null,1462]
[null,null,null,null,null,null,null,null,null,null,null,1463]
[null,null,null,null,null,null,null,null,null,null,null,1464]
[null,null,null,null,null,null,null,null,null,null,null,1465]
[null,null,null,null,null,null,null,null,null,null,null,1466]
[null,null,null,null,null,null,null,null,null,null,null,1467]
[null,null,null,null,null,null,null,null,null,null,null,1468]
[null,null,null,null,null,null,null,null,null,null,null,1469]
[null,null,null,null,null,null,null,null,null,null,null,1470]
[null,null,null,null,null,null,null,null,null,null,null,1471]
[null,null,null,null,null,null,null,null,null,null,null,1472]
[null,null,null,null,null,null,null,null,null,null,null,1473]
[null,null,null,null,null,null,null,null,null,null,null,{"$f":"ROW()-1","v":1474}]
[null,null,null,null,null,null,null,null,null,null,null,1475]
[null,null,null,null,null,null,null,null,null,null,null,1476]
[null,null,null,null,null,null,null,null,null,null,null,1477]
[null,null,null,null,null,null,null,null,null,null,null,1478]
[null,null,null,null,null,null,null,null,null,null,null,1479]
[null,null,null,null,null,null,null,null,null,null,null,1480]
[null,null,null,null,null,null,null,null,null,null,null,1481]
[null,null,null,null,null,null,null,null,null,null,null,1482]
[null,null,null,null,null,null,null,null,null,null,null,1483]
[null,null,null,null,null,null,null,null,null,null,null,1484]
[null,null,null,null,null,null,null,null,null,null,null,1485]
[null,null,null,null,null,null,null,null,null,null,null,1486]
[null,null,null,null,null,null,null,null,null,null,null,1487]
[null,null,null,null,null,null,null,null,null,null,null,1488]
[null,null,null,null,null,null,null,null,null,null,null,1489]
[null,null,null,null,null,null,null,null,null,null,null,1490]
[null,null,null,null,null,null,null,null,null,null,null,1491]
[null,null,null,null,null,null,null,null,null,null,null,1492]
[null,null,null,null,null,null,null,null,null,null,null,1493]
[null,null,null,null,null,null,null,null,null,null,null,1494]
[null,null,null,null,null,null,null,null,null,null,null,1495]
[null,null,null,null,null,null,null,null,null,null,null,1496]
[null,null,null,null,null,null,null,null,null,null,null,1497]
[null,null,null,null,null,null,null,null,null,null,null,1498]
[null,null,null,null,null,null,null,null,null,null,null,1499]
[null,null,null,null,null,null,null,null,null,null,null,1500]
[null,null,null,null,null,null,null,null,null,null,null,1501]
[null,null,null,null,null,null,null,null,null,null,null,1502]
[null,null,null,null,null,null,null,null,null,null,null,1503]
[null,null,null,null,null,null,null,null,null,null,null,1504]
[null,null,null,null,null,null,null,null,null,null,null,1505]
[null,null,null,null,null,null,null,null,null,null,null,1506]
[null,null,null,null,null,null,null,null,null,null,null,1507]
[null,null,null,null,null,null,null,null,null,null,null,1508]
[null,null,null,null,null,null,null,null,null,null,null,1509]
[null,null,null,null,null,null,null,null,null,null,null,1510]
[null,null,null,null,null,null,null,null,null,null,null,1511]
[null,null,null,null,null,null,null,null,null,null,null,1512]
[null,null,null,null,null,null,null,null,null,null,null,1513]
[null,null,null,null,null,null,null,null,null,null,null,1514]
[null,null,null,null,null,null,null,null,null,null,null,1515]
[null,null,null,null,null,null,null,null,null,null,null,1516]
[null,null,null,null,null,null,null,null,null,null,null,1517]
[null,null,null,null,null,null,null,null,null,null,null,1518]
[null,null,null,null,null,null,null,null,null,null,null,1519]
[null,null,null,null,null,null,null,null,null,null,null,1520]
[null,null,null,null,null,null,null,null,null,null,null,1521]
[null,null,null,null,null,null,null,null,null,null,null,1522]
[null,null,null,null,null,null,null,null,null,null,null,1523]
[null,null,null,null,null,null,null,null,null,null,null,1524]
[null,null,null,null,null,null,null,null,null,null,null,1525]
[null,null,null,null,null,null,null,null,null,null,null,1526]
[null,null,null,null,null,null,null,null,null,null,null,1527]
[null,null,null,null,null,null,null,null,null,null,null,1528]
[null,null,null,null,null,null,null,null,null,null,null,1529]
[null,null,null,null,null,null,null,null,null,null,null,1530]
[null,null,null,null,null,null,null,null,null,null,null,1531]
[null,null,null,null,null,null,null,null,null,null,null,1532]
[null,null,null,null,null,null,null,null,null,null,null,1533]
[null,null,null,null,null,null,null,null,null,null,null,1534]
[null,null,null,null,null,null,null,null,null,null,null,1535]
[null,null,null,null,null,null,null,null,null,null,null,1536]
[null,null,null,null,null,null,null,null,null,null,null,1537]
[null,null,null,null,null,null,null,null,null,null,null,{"$f":"ROW()-1","v":1538}]
[null,null,null,null,null,null,null,null,null,null,null,1539]
[null,null,null,null,null,null,null,null,null,null,null,1540]
[null,null,null,null,null,null,null,null,null,null,null,1541]
[null,null,null,null,null,null,null,null,null,null,null,1542]
[null,null,null,null,null,null,null,null,null,null,null,1543]
[null,null,null,null,null,null,null,null,null,null,null,1544]
[null,null,null,null,null,null,null,null,null,null,null,1545]
[null,null,null,null,null,null,null,null,null,null,null,1546]
[null,null,null,null,null,null,null,null,null,null,null,1547]
[null,null,null,null,null,null,null,null,null,null,null,1548]
[null,null,null,null,null,null,null,null,null,null,null,1549]
[null,null,null,null,null,null,null,null,null,null,null,1550]
[null,null,null,null,null,null,null,null,null,null,null,1551]
[null,null,null,null,null,null,null,null,null,null,null,1552]
[null,null,null,null,null,null,null,null,null,null,null,1553]
[null,null,null,null,null,null,null,null,null,null,null,1554]
[null,null,null,null,null,null,null,null,null,null,null,1555]
[null,null,null,null,null,null,null,null,null,null,null,1556]
[null,null,null,null,null,null,null,null,null,null,null,1557]
[null,null,null,null,null,null,null,null,null,null,null,1558]
[null,null,null,null,null,null,null,null,null,null,null,1559]
[null,null,null,null,null,null,null,null,null,null,null,1560]
[null,null,null,null,null,null,null,null,null,null,null,1561]
[null,null,null,null,null,null,null,null,null,null,null,1562]
[null,null,null,null,null,null,null,null,null,null,null,1563]
[null,null,null,null,null,null,null,null,null,null,null,1564]
[null,null,null,null,null,null,null,null,null,null,null,1565]
[null,null,null,null,null,null,null,null,null,null,null,1566]
[null,null,null,null,null,null,null,null,null,null,null,1567]
[null,null,null,null,null,null,null,null,null,null,null,1568]
[null,null,null,null,null,null,null,null,null,null,null,1569]
[null,null,null,null,null,null,null,null,null,null,null,1570]
[null,null,null,null,null,null,null,null,null,null,null,1571]
[null,null,null,null,null,null,null,null,null,null,null,1572]
[null,null,null,null,null,null,null,null,null,null,null,1573]
[null,null,null,null,null,null,null,null,null,null,null,1574]
[null,null,null,null,null,null,null,null,null,null,null,1575]
[null,null,null,null,null,null,null,null,null,null,null,1576]
[null,null,null,null,null,null,null,null,null,null,null,1577]
[null,null,null,null,null,null,null,null,null,null,null,1578]
[null,null,null,null,null,null,null,null,null,null,null,1579]
[null,null,null,null,null,null,null,null,null,null,null,1580]
[null,null,null,null,null,null,null,null,null,null,null,1581]
[null,null,null,null,null,null,null,null,null,null,null,1582]
[null,null,null,null,null,null,null,null,null,null,null,1583]
[null,null,null,null,null,null,null,null,null,null,null,1584]
[null,null,null,null,null,null,null,null,null,null,null,1585]
[null,null,null,null,null,null,null,null,null,null,null,1586]
[null,null,null,null,null,null,null,null,null,null,null,1587]
[null,null,null,null,null,null,null,null,null,null,null,1588]
[null,null,null,null,null,null,null,null,null,null,null,1589]
[null,null,null,null,null,null,null,null,null,null,null,1590]
[null,null,null,null,null,null,null,null,null,null,null,1591]
[null,null,null,null,null,null,null,null,null,null,null,1592]
[null,null,null,null,null,null,null,null,null,null,null,1593]
[null,null,null,null,null,null,null,null,null,null,null,1594]
[null,null,null,null,null,null,null,null,null,null,null,1595]
[null,null,null,null,null,null,null,null,null,null,null,1596]
[null,null,null,null,null,null,null,null,null,null,null,1597]
[null,null,null,null,null,null,null,null,null,null,null,1598]
[null,null,null,null,null,null,null,null,null,null,null,1599]
[null,null,null,null,null,null,null,null,null,null,null,1600]
[null,null,null,null,null,null,null,null,null,null,null,1601]
[null,null,null,null,null,null,null,null,null,null,null,{"$f":"ROW()-1","v":1602}]
[null,null,null,null,null,null,null,null,null,null,null,1603]
[null,null,null,null,null,null,null,null,null,null,null,1604]
[null,null,null,null,null,null,null,null,null,null,null,1605]
[null,null,null,null,null,null,null,null,null,null,null,1606]
[null,null,null,null,null,null,null,null,null,null,null,1607]
[null,null,null,null,null,null,null,null,null,null,null,1608]
[null,null,null,null,null,null,null,null,null,null,null,1609]
[null,null,null,null,null,null,null,null,null,null,null,1610]
[null,null,null,null,null,null,null,null,null,null,null,1611]
[null,null,null,null,null,null,null,null,null,null,null,1612]
[null,null,null,null,null,null,null,null,null,null,null,1613]
[null,null,null,null,null,null,null,null,null,null,null,1614]
[null,null,null,null,null,null,null,null,null,null,null,1615]
[null,null,null,null,null,null,null,null,null,null,null,1616]
[null,null,null,null,null,null,null,null,null,null,null,1617]
[null,null,null,null,null,null,null,null,null,null,null,1618]
[null,null,null,null,null,null,null,null,null,null,null,1619]
[null,null,null,null,null,null,null,null,null,null,null,1620]
[null,null,null,null,null,null,null,null,null,null,null,1621]
[null,null,null,null,null,null,null,null,null,null,null,1622]
[null,null,null,null,null,null,null,null,null,null,null,1623]
[null,null,null,null,null,null,null,null,null,null,null,1624]
[null,null,null,null,null,null,null,null,null,null,null,1625]
[null,null,null,null,null,null,null,null,null,null,null,1626]
[null,null,null,null,null,null,null,null,null,null,null,1627]
[null,null,null,null,null,null,null,null,null,null,null,1628]
[null,null,null,null,null,null,null,null,null,null,null,1629]
[null,null,null,null,null,null,null,null,null,null,null,1630]
[null,null,null,null,null,null,null,null,null,null,null,1631]
[null,null,null,null,null,null,null,null,null,null,null,1632]
[null,null,null,null,null,null,null,null,null,null,null,1633]
[null,null,null,null,null,null,null,null,null,null,null,1634]
[null,null,null,null,null,null,null,null,null,null,null,1635]
[null,null,null,null,null,null,null,null,null,null,null,1636]
[null,null,null,null,null,null,null,null,null,null,null,1637]
[null,null,null,null,null,null,null,null,null,null,null,1638]
[null,null,null,null,null,null,null,null,null,null,null,1639]
[null,null,null,null,null,null,null,null,null,null,null,1640]
[null,null,null,null,null,null,null,null,null,null,null,1641]
[null,null,null,null,null,null,null,null,null,null,null,1642]
[null,null,null,null,null,null,null,null,null,null,null,1643]
[null,null,null,null,null,null,null,null,null,null,null,1644]
[null,null,null,null,null,null,null,null,null,null,null,1645]
[null,null,null,null,null,null,null,null,null,null,null,1646]
[null,null,null,null,null,null,null,null,null,null,null,1647]
[null,null,null,null,null,null,null,null,null,null,null,1648]
[null,null,null,null,null,null,null,null,null,null,null,1649]
[null,null,null,null,null,null,null,null,null,null,null,1650]
[null,null,null,null,null,null,null,null,null,null,null,1651]
[null,null,null,null,null,null,null,null,null,null,null,1652]
[null,null,null,null,null,null,null,null,null,null,null,1653]
[null,null,null,null,null,null,null,null,null,null,null,1654]
[null,null,null,null,null,null,null,null,null,null,null,1655]
[null,null,null,null,null,null,null,null,null,null,null,1656]
[null,null,null,null,null,null,null,null,null,null,null,1657]
[null,null,null,null,null,null,null,null,null,null,null,1658]
[null,null,null,null,null,null,null,null,null,null,null,1659]
[null,null,null,null,null,null,null,null,null,null,null,1660]
[null,null,null,null,null,null,null,null,null,null,null,1661]
[null,null,null,null,null,null,null,null,null,null,null,1662]
[null,null,null,null,null,null,null,null,null,null,null,1663]
[null,null,null,null,null,null,null,null,null,null,null,1664]
[null,null,null,null,null,null,null,null,null,null,null,1665]
[null,null,null,null,null,null,null,null,null,null,null,{"$f":"ROW()-1","v":1666}]
[null,null,null,null,null,null,null,null,null,null,null,1667]
[null,null,null,null,null,null,null,null,null,null,null,1668]
[null,null,null,null,null,null,null,null,null,null,null,1669]
[null,null,null,null,null,null,null,null,null,null,null,1670]
[null,null,null,null,null,null,null,null,null,null,null,1671]
[null,null,null,null,null,null,null,null,null,null,null,1672]
[null,null,null,null,null,null,null,null,null,null,null,1673]
[null,null,null,null,null,null,null,null,null,null,null,1674]
[null,null,null,null,null,null,null,null,null,null,null,1675]
[null,null,null,null,null,null,null,null,null,null,null,1676]
[null,null,null,null,null,null,null,null,null,null,null,1677]
[null,null,null,null,null,null,null,null,null,null,null,1678]
[null,null,null,null,null,null,null,null,null,null,null,1679]
[null,null,null,null,null,null,null,null,null,null,null,1680]
[null,null,null,null,null,null,null,null,null,null,null,1681]
[null,null,null,null,null,null,null,null,null,null,null,1682]
[null,null,null,null,null,null,null,null,null,null,null,1683]
[null,null,null,null,null,null,null,null,null,null,null,1684]
[null,null,null,null,null,null,null,null,null,null,null,1685]
[null,null,null,null,null,null,null,null,null,null,null,1686]
[null,null,null,null,null,null,null,null,null,null,null,1687]
[null,null,null,null,null,null,null,null,null,null,null,1688]
[null,null,null,null,null,null,null,null,null,null,null,1689]
[null,null,null,null,null,null,null,null,null,null,null,1690]
[null,null,null,null,null,null,null,null,null,null,null,1691]
[null,null,null,null,null,null,null,null,null,null,null,1692]
[null,null,null,null,null,null,null,null,null,null,null,1693]
[null,null,null,null,null,null,null,null,null,null,null,1694]
[null,null,null,null,null,null,null,null,null,null,null,1695]
[null,null,null,null,null,null,null,null,null,null,null,1696]
[null,null,null,null,null,null,null,null,null,null,null,1697]
[null,null,null,null,null,null,null,null,null,null,null,1698]
[null,null,null,null,null,null,null,null,null,null,null,1699]
[null,null,null,null,null,null,null,null,null,null,null,1700]
[null,null,null,null,null,null,null,null,null,null,null,1701]
[null,null,null,null,null,null,null,null,null,null,null,1702]
[null,null,null,null,null,null,null,null,null,null,null,1703]
[null,null,null,null,null,null,null,null,null,null,null,1704]
[null,null,null,null,null,null,null,null,null,null,null,1705]
[null,null,null,null,null,null,null,null,null,null,null,1706]
[null,null,null,null,null,null,null,null,null,null,null,1707]
[null,null,null,null,null,null,null,null,null,null,null,1708]
[null,null,null,null,null,null,null,null,null,null,null,1709]
[null,null,null,null,null,null,null,null,null,null,null,1710]
[null,null,null,null,null,null,null,null,null,null,null,1711]
[null,null,null,null,null,null,null,null,null,null,null,1712]
[null,null,null,null,null,null,null,null,null,null,null,1713]
[null,null,null,null,null,null,null,null,null,null,null,1714]
[null,null,null,null,null,null,null,null,null,null,null,1715]
[null,null,null,null,null,null,null,null,null,null,null,1716]
[null,null,null,null,null,null,null,null,null,null,null,1717]
[null,null,null,null,null,null,null,null,null,null,null,1718]
[null,null,null,null,null,null,null,null,null,null,null,1719]
[null,null,null,null,null,null,null,null,null,null,null,1720]
[null,null,null,null,null,null,null,null,null,null,null,1721]
[null,null,null,null,null,null,null,null,null,null,null,1722]
[null,null,null,null,null,null,null,null,null,null,null,1723]
[null,null,null,null,null,null,null,null,null,null,null,1724]
[null,null,null,null,null,null,null,null,null,null,null,1725]
[null,null,null,null,null,null,null,null,null,null,null,1726]
[null,null,null,null,null,null,null,null,null,null,null,1727]
[null,null,null,null,null,null,null,null,null,null,null,1728]
[null,null,null,null,null,null,null,null,null,null,null,1729]
[null,null,null,null,null,null,null,null,null,null,null,{"$f":"ROW()-1","v":1730}]
[null,null,null,null,null,null,null,null,null,null,null,1731]
[null,null,null,null,null,null,null,null,null,null,null,1732]
[null,null,null,null,null,null,null,null,null,null,null,1733]
[null,null,null,null,null,null,null,null,null,null,null,1734]
[null,null,null,null,null,null,null,null,null,null,null,1735]
[null,null,null,null,null,null,null,null,null,null,null,1736]
[null,null,null,null,null,null,null,null,null,null,null,1737]
[null,null,null,null,null,null,null,null,null,null,null,1738]
[null,null,null,null,null,null,null,null,null,null,null,1739]
[null,null,null,null,null,null,null,null,null,null,null,1740]
[null,null,null,null,null,null,null,null,null,null,null,1741]
[null,null,null,null,null,null,null,null,null,null,null,1742]
[null,null,null,null,null,null,null,null,null,null,null,1743]
[null,null,null,null,null,null,null,null,null,null,null,1744]
[null,null,null,null,null,null,null,null,null,null,null,1745]
[null,null,null,null,null,null,null,null,null,null,null,1746]
[null,null,null,null,null,null,null,null,null,null,null,1747]
[null,null,null,null,null,null,null,null,null,null,null,1748]
[null,null,null,null,null,null,null,null,null,null,null,1749]
[null,null,null,null,null,null,null,null,null,null,null,1750]
[null,null,null,null,null,null,null,null,null,null,null,1751]
[null,null,null,null,null,null,null,null,null,null,null,1752]
[null,null,null,null,null,null,null,null,null,null,null,1753]
[null,null,null,null,null,null,null,null,null,null,null,1754]
[null,null,null,null,null,null,null,null,null,null,null,1755]
[null,null,null,null,null,null,null,null,null,null,null,1756]
[null,null,null,null,null,null,null,null,null,null,null,1757]
[null,null,null,null,null,null,null,null,null,null,null,1758]
[null,null,null,null,null,null,null,null,null,null,null,1759]
[null,null,null,null,null,null,null,null,null,null,null,1760]
[null,null,null,null,null,null,null,null,null,null,null,1761]
[null,null,null,null,null,null,null,null,null,null,null,1762]
[null,null,null,null,null,null,null,null,null,null,null,1763]
[null,null,null,null,null,null,null,null,null,null,null,1764]
[null,null,null,null,null,null,null,null,null,null,null,1765]
[null,null,null,null,null,null,null,null,null,null,null,1766]
[null,null,null,null,null,null,null,null,null,null,null,1767]
[null,null,null,null,null,null,null,null,null,null,null,1768]
[null,null,null,null,null,null,null,null,null,null,null,1769]
[null,null,null,null,null,null,null,null,null,null,null,1770]
[null,null,null,null,null,null,null,null,null,null,null,1771]
[null,null,null,null,null,null,null,null,null,null,null,1772]
[null,null,null,null,null,null,null,null,null,null,null,1773]
[null,null,null,null,null,null,null,null,null,null,null,1774]
[null,null,null,null,null,null,null,null,null,null,null,1775]
[null,null,null,null,null,null,null,null,null,null,null,1776]
[null,null,null,null,null,null,null,null,null,null,null,1777]
[null,null,null,null,null,null,null,null,null,null,null,1778]
[null,null,null,null,null,null,null,null,null,null,null,1779]
[null,null,null,null,null,null,null,null,null,null,null,1780]
[null,null,null,null,null,null,null,null,null,null,null,1781]
[null,null,null,null,null,null,null,null,null,null,null,1782]
[null,null,null,null,null,null,null,null,null,null,null,1783]
[null,null,null,null,null,null,null,null,null,null,null,1784]
[null,null,null,null,null,null,null,null,null,null,null,1785]
[null,null,null,null,null,null,null,null,null,null,null,1786]
[null,null,null,null,null,null,null,null,null,null,null,1787]
[null,null,null,null,null,null,null,null,null,null,null,1788]
[null,null,null,null,null,null,null,null,null,null,null,1789]
[null,null,null,null,null,null,null,null,null,null,null,1790]
[null,null,null,null,null,null,null,null,null,null,null,1791]
[null,null,null,null,null,null,null,null,null,null,null,1792]
[null,null,null,null,null,null,null,null,null,null,null,1793]
[null,null,null,null,null,null,null,null,null,null,null,{"$f":"ROW()-1","v":1794}]
[null,null,null,null,null,null,null,null,null,null,null,1795]
[null,null,null,null,null,null,null,null,null,null,null,1796]
[null,null,null,null,null,null,null,null,null,null,null,1797]
[null,null,null,null,null,null,null,null,null,null,null,1798]
[null,null,null,null,null,null,null,null,null,null,null,1799]
[null,null,null,null,null,null,null,null,null,null,null,1800]
[null,null,null,null,null,null,null,null,null,null,null,1801]
[null,null,null,null,null,null,null,null,null,null,null,1802]
[null,null,null,null,null,null,null,null,null,null,null,1803]
[null,null,null,null,null,null,null,null,null,null,null,1804]
[null,null,null,null,null,null,null,null,null,null,null,1805]
[null,null,null,null,null,null,null,null,null,null,null,1806]
[null,null,null,null,null,null,null,null,null,null,null,1807]
[null,null,null,null,null,null,null,null,null,null,null,1808]
[null,null,null,null,null,null,null,null,null,null,null,1809]
[null,null,null,null,null,null,null,null,null,null,null,1810]
[null,null,null,null,null,null,null,null,null,null,null,1811]
[null,null,null,null,null,null,null,null,null,null,null,1812]
[null,null,null,null,null,null,null,null,null,null,null,1813]
[null,null,null,null,null,null,null,null,null,null,null,1814]
[null,null,null,null,null,null,null,null,null,null,null,1815]
[null,null,null,null,null,null,null,null,null,null,null,1816]
[null,null,null,null,null,null,null,null,null,null,null,1817]
[null,null,null,null,null,null,null,null,null,null,null,1818]
[null,null,null,null,null,null,null,null,null,null,null,1819]
[null,null,null,null,null,null,null,null,null,null,null,1820]
[null,null,null,null,null,null,null,null,null,null,null,1821]
[null,null,null,null,null,null,null,null,null,null,null,1822]
[null,null,null,null,null,null,null,null,null,null,null,1823]
[null,null,null,null,null,null,null,null,null,null,null,1824]
[null,null,null,null,null,null,null,null,null,null,null,1825]
[null,null,null,null,null,null,null,null,null,null,null,1826]
[null,null,null,null,null,null,null,null,null,null,null,1827]
[null,null,null,null,null,null,null,null,null,null,null,1828]
[null,null,null,null,null,null,null,null,null,null,null,1829]
[null,null,null,null,null,null,null,null,null,null,null,1830]
[null,null,null,null,null,null,null,null,null,null,null,1831]
[null,null,null,null,null,null,null,null,null,null,null,1832]
[null,null,null,null,null,null,null,null,null,null,null,1833]
[null,null,null,null,null,null,null,null,null,null,null,1834]
[null,null,null,null,null,null,null,null,null,null,null,1835]
[null,null,null,null,null,null,null,null,null,null,null,1836]
[null,null,null,null,null,null,null,null,null,null,null,1837]
[null,null,null,null,null,null,null,null,null,null,null,1838]
[null,null,null,null,null,null,null,null,null,null,null,1839]
[null,null,null,null,null,null,null,null,null,null,null,1840]
[null,null,null,null,null,null,null,null,null,null,null,1841]
[null,null,null,null,null,null,null,null,null,null,null,1842]
[null,null,null,null,null,null,null,null,null,null,null,1843]
[null,null,null,null,null,null,null,null,null,null,null,1844]
[null,null,null,null,null,null,null,null,null,null,null,1845]
[null,null,null,null,null,null,null,null,null,null,null,1846]
[null,null,null,null,null,null,null,null,null,null,null,1847]
[null,null,null,null,null,null,null,null,null,null,null,1848]
[null,null,null,null,null,null,null,null,null,null,null,1849]
[null,null,null,null,null,null,null,null,null,null,null,1850]
[null,null,null,null,null,null,null,null,null,null,null,1851]
[null,null,null,null,null,null,null,null,null,null,null,1852]
[null,null,null,null,null,null,null,null,null,null,null,1853]
[null,null,null,null,null,null,null,null,null,null,null,1854]
[null,null,null,null,null,null,null,null,null,null,null,1855]
[null,null,null,null,null,null,null,null,null,null,null,1856]
[null,null,null,null,null,null,null,null,null,null,null,1857]
[null,null,null,null,null,null,null,null,null,null,null,{"$f":"ROW()-1","v":1858}]
[null,null,null,null,null,null,null,null,null,null,null,1859]
[null,null,null,null,null,null,null,null,null,null,null,1860]
[null,null,null,null,null,null,null,null,null,null,null,1861]
[null,null,null,null,null,null,null,null,null,null,null,1862]
[null,null,null,null,null,null,null,null,null,null,null,1863]
[null,null,null,null,null,null,null,null,null,null,null,1864]
[null,null,null,null,null,null,null,null,null,null,null,1865]
[null,null,null,null,null,null,null,null,null,null,null,1866]
[null,null,null,null,null,null,null,null,null,null,null,1867]
[null,null,null,null,null,null,null,null,null,null,null,1868]
[null,null,null,null,null,null,null,null,null,null,null,1869]
[null,null,null,null,null,null,null,null,null,null,null,1870]
[null,null,null,null,null,null,null,null,null,null,null,1871]
[null,null,null,null,null,null,null,null,null,null,null,1872]
[null,null,null,null,null,null,null,null,null,null,null,1873]
[null,null,null,null,null,null,null,null,null,null,null,1874]
[null,null,null,null,null,null,null,null,null,null,null,1875]
[null,null,null,null,null,null,null,null,null,null,null,1876]
[null,null,null,null,null,null,null,null,null,null,null,1877]
[null,null,null,null,null,null,null,null,null,null,null,1878]
[null,null,null,null,null,null,null,null,null,null,null,1879]
[null,null,null,null,null,null,null,null,null,null,null,1880]
[null,null,null,null,null,null,null,null,null,null,null,1881]
[null,null,null,null,null,null,null,null,null,null,null,1882]
[null,null,null,null,null,null,null,null,null,null,null,1883]
[null,null,null,null,null,null,null,null,null,null,null,1884]
[null,null,null,null,null,null,null,null,null,null,null,1885]
[null,null,null,null,null,null,null,null,null,null,null,1886]
[null,null,null,null,null,null,null,null,null,null,null,1887]
[null,null,null,null,null,null,null,null,null,null,null,1888]
[null,null,null,null,null,null,null,null,null,null,null,1889]
[null,null,null,null,null,null,null,null,null,null,null,1890]
[null,null,null,null,null,null,null,null,null,null,null,1891]
[null,null,null,null,null,null,null,null,null,null,null,1892]
[null,null,null,null,null,null,null,null,null,null,null,1893]
[null,null,null,null,null,null,null,null,null,null,null,1894]
[null,null,null,null,null,null,null,null,null,null,null,1895]
[null,null,null,null,null,null,null,null,null,null,null,1896]
[null,null,null,null,null,null,null,null,null,null,null,1897]
[null,null,null,null,null,null,null,null,null,null,null,1898]
[null,null,null,null,null,null,null,null,null,null,null,1899]
[null,null,null,null,null,null,null,null,null,null,null,1900]
[null,null,null,null,null,null,null,null,null,null,null,1901]
[null,null,null,null,null,null,null,null,null,null,null,1902]
[null,null,null,null,null,null,null,null,null,null,null,1903]
[null,null,null,null,null,null,null,null,null,null,null,1904]
[null,null,null,null,null,null,null,null,null,null,null,1905]
[null,null,null,null,null,null,null,null,null,null,null,1906]
[null,null,null,null,null,null,null,null,null,null,null,1907]
[null,null,null,null,null,null,null,null,null,null,null,1908]
[null,null,null,null,null,null,null,null,null,null,null,1909]
[null,null,null,null,null,null,null,null,null,null,null,1910]
[null,null,null,null,null,null,null,null,null,null,null,1911]
[null,null,null,null,null,null,null,null,null,null,null,1912]
[null,null,null,null,null,null,null,null,null,null,null,1913]
[null,null,null,null,null,null,null,null,null,null,null,1914]
[null,null,null,null,null,null,null,null,null,null,null,1915]
[null,null,null,null,null,null,null,null,null,null,null,1916]
[null,null,null,null,null,null,null,null,null,null,null,1917]
[null,null,null,null,null,null,null,null,null,null,null,1918]
[null,null,null,null,null,null,null,null,null,null,null,1919]
[null,null,null,null,null,null,null,null,null,null,null,1920]
[null,null,null,null,null,null,null,null,null,null,null,1921]
[null,null,null,null,null,null,null,null,null,null,null,{"$f":"ROW()-1","v":1922}]
[null,null,null,null,null,null,null,null,null,null,null,1923]
[null,null,null,null,null,null,null,null,null,null,null,1924]
[null,null,null,null,null,null,null,null,null,null,null,1925]
[null,null,null,null,null,null,null,null,null,null,null,1926]
[null,null,null,null,null,null,null,null,null,null,null,1927]
[null,null,null,null,null,null,null,null,null,null,null,1928]
[null,null,null,null,null,null,null,null,null,null,null,1929]
[null,null,null,null,null,null,null,null,null,null,null,1930]
[null,null,null,null,null,null,null,null,null,null,null,1931]
[null,null,null,null,null,null,null,null,null,null,null,1932]
[null,null,null,null,null,null,null,null,null,null,null,1933]
[null,null,null,null,null,null,null,null,null,null,null,1934]
[null,null,null,null,null,null,null,null,null,null,null,1935]

{"sheet":"Search","index":1,"n_rows":38,"n_cols":4,"rows_kept":38,"cut":false,"hidden":false,"merged":[]}
["رقم السيارة",8280]
["من","2018-01-01","إلى","2018-01-05"]
[]
["التاريخ ","المسافة المقطوعة","رقم الكرت ","معدل الاستهلاك "]
[{"$f":"IFERROR(INDEX(January!$A$2:$A$1000,SMALL(IF(January!$C$2:$C$1000=$B$1,IF(January!$A$2:$A$1000>=$B$2,IF(January!$A$2:$A$1000<=$D$2,ROW($A$2:$A$1000)-ROW($A$2)+1))),ROWS($A$5:A5))),\"\")","v":"2018-01-01"},{"$f":"IFERROR(INDEX(January!$I$2:$I$1000,SMALL(IF(January!$C$2:$C$1000=$B$1,IF(January!$A$2:$A$1000>=$B$2,IF(January!$A$2:$A$1000<=$D$2,ROW($A$2:$A$1000)-ROW($A$2)+1))),ROWS($A$5:B5))),\"\")","v":942},{"$f":"IFERROR(INDEX(January!$F$2:$F$1000,SMALL(IF(January!$C$2:$C$1000=$B$1,IF(January!$A$2:$A$1000>=$B$2,IF(January!$A$2:$A$1000<=$D$2,ROW($A$2:$A$1000)-ROW($A$2)+1))),ROWS($A$5:C5))),\"\")","v":102},{"$f":"IFERROR(INDEX(January!$K$2:$K$1000,SMALL(IF(January!$C$2:$C$1000=$B$1,IF(January!$A$2:$A$1000>=$B$2,IF(January!$A$2:$A$1000<=$D$2,ROW($A$2:$A$1000)-ROW($A$2)+1))),ROWS($A$5:D5))),\"\")","v":14.3184}]
[{"$f":"IFERROR(INDEX(January!$A$2:$A$1000,SMALL(IF(January!$C$2:$C$1000=$B$1,IF(January!$A$2:$A$1000>=$B$2,IF(January!$A$2:$A$1000<=$D$2,ROW($A$2:$A$1000)-ROW($A$2)+1))),ROWS($A$5:A6))),\"\")","v":"2018-01-01"},{"$f":"IFERROR(INDEX(January!$I$2:$I$1000,SMALL(IF(January!$C$2:$C$1000=$B$1,IF(January!$A$2:$A$1000>=$B$2,IF(January!$A$2:$A$1000<=$D$2,ROW($A$2:$A$1000)-ROW($A$2)+1))),ROWS($A$5:B6))),\"\")","v":10153},{"$f":"IFERROR(INDEX(January!$F$2:$F$1000,SMALL(IF(January!$C$2:$C$1000=$B$1,IF(January!$A$2:$A$1000>=$B$2,IF(January!$A$2:$A$1000<=$D$2,ROW($A$2:$A$1000)-ROW($A$2)+1))),ROWS($A$5:C6))),\"\")","v":102},{"$f":"IFERROR(INDEX(January!$K$2:$K$1000,SMALL(IF(January!$C$2:$C$1000=$B$1,IF(January!$A$2:$A$1000>=$B$2,IF(January!$A$2:$A$1000<=$D$2,ROW($A$2:$A$1000)-ROW($A$2)+1))),ROWS($A$5:D6))),\"\")","v":154.32560000000001}]
[{"$f":"IFERROR(INDEX(January!$A$2:$A$1000,SMALL(IF(January!$C$2:$C$1000=$B$1,IF(January!$A$2:$A$1000>=$B$2,IF(January!$A$2:$A$1000<=$D$2,ROW($A$2:$A$1000)-ROW($A$2)+1))),ROWS($A$5:A7))),\"\")","v":"2018-01-05"},{"$f":"IFERROR(INDEX(January!$I$2:$I$1000,SMALL(IF(January!$C$2:$C$1000=$B$1,IF(January!$A$2:$A$1000>=$B$2,IF(January!$A$2:$A$1000<=$D$2,ROW($A$2:$A$1000)-ROW($A$2)+1))),ROWS($A$5:B7))),\"\")","v":10153},{"$f":"IFERROR(INDEX(January!$F$2:$F$1000,SMALL(IF(January!$C$2:$C$1000=$B$1,IF(January!$A$2:$A$1000>=$B$2,IF(January!$A$2:$A$1000<=$D$2,ROW($A$2:$A$1000)-ROW($A$2)+1))),ROWS($A$5:C7))),\"\")","v":102},{"$f":"IFERROR(INDEX(January!$K$2:$K$1000,SMALL(IF(January!$C$2:$C$1000=$B$1,IF(January!$A$2:$A$1000>=$B$2,IF(January!$A$2:$A$1000<=$D$2,ROW($A$2:$A$1000)-ROW($A$2)+1))),ROWS($A$5:D7))),\"\")","v":154.32560000000001}]
[{"$f":"IFERROR(INDEX(January!$A$2:$A$1000,SMALL(IF(January!$C$2:$C$1000=$B$1,IF(January!$A$2:$A$1000>=$B$2,IF(January!$A$2:$A$1000<=$D$2,ROW($A$2:$A$1000)-ROW($A$2)+1))),ROWS($A$5:A8))),\"\")","v":""},{"$f":"IFERROR(INDEX(January!$I$2:$I$1000,SMALL(IF(January!$C$2:$C$1000=$B$1,IF(January!$A$2:$A$1000>=$B$2,IF(January!$A$2:$A$1000<=$D$2,ROW($A$2:$A$1000)-ROW($A$2)+1))),ROWS($A$5:B8))),\"\")","v":""},{"$f":"IFERROR(INDEX(January!$F$2:$F$1000,SMALL(IF(January!$C$2:$C$1000=$B$1,IF(January!$A$2:$A$1000>=$B$2,IF(January!$A$2:$A$1000<=$D$2,ROW($A$2:$A$1000)-ROW($A$2)+1))),ROWS($A$5:C8))),\"\")","v":""},{"$f":"IFERROR(INDEX(January!$K$2:$K$1000,SMALL(IF(January!$C$2:$C$1000=$B$1,IF(January!$A$2:$A$1000>=$B$2,IF(January!$A$2:$A$1000<=$D$2,ROW($A$2:$A$1000)-ROW($A$2)+1))),ROWS($A$5:D8))),\"\")","v":""}]
[{"$f":"IFERROR(INDEX(January!$A$2:$A$1000,SMALL(IF(January!$C$2:$C$1000=$B$1,IF(January!$A$2:$A$1000>=$B$2,IF(January!$A$2:$A$1000<=$D$2,ROW($A$2:$A$1000)-ROW($A$2)+1))),ROWS($A$5:A9))),\"\")","v":""},{"$f":"IFERROR(INDEX(January!$I$2:$I$1000,SMALL(IF(January!$C$2:$C$1000=$B$1,IF(January!$A$2:$A$1000>=$B$2,IF(January!$A$2:$A$1000<=$D$2,ROW($A$2:$A$1000)-ROW($A$2)+1))),ROWS($A$5:B9))),\"\")","v":""},{"$f":"IFERROR(INDEX(January!$F$2:$F$1000,SMALL(IF(January!$C$2:$C$1000=$B$1,IF(January!$A$2:$A$1000>=$B$2,IF(January!$A$2:$A$1000<=$D$2,ROW($A$2:$A$1000)-ROW($A$2)+1))),ROWS($A$5:C9))),\"\")","v":""},{"$f":"IFERROR(INDEX(January!$K$2:$K$1000,SMALL(IF(January!$C$2:$C$1000=$B$1,IF(January!$A$2:$A$1000>=$B$2,IF(January!$A$2:$A$1000<=$D$2,ROW($A$2:$A$1000)-ROW($A$2)+1))),ROWS($A$5:D9))),\"\")","v":""}]
[{"$f":"IFERROR(INDEX(January!$A$2:$A$1000,SMALL(IF(January!$C$2:$C$1000=$B$1,IF(January!$A$2:$A$1000>=$B$2,IF(January!$A$2:$A$1000<=$D$2,ROW($A$2:$A$1000)-ROW($A$2)+1))),ROWS($A$5:A10))),\"\")","v":""},{"$f":"IFERROR(INDEX(January!$I$2:$I$1000,SMALL(IF(January!$C$2:$C$1000=$B$1,IF(January!$A$2:$A$1000>=$B$2,IF(January!$A$2:$A$1000<=$D$2,ROW($A$2:$A$1000)-ROW($A$2)+1))),ROWS($A$5:B10))),\"\")","v":""},{"$f":"IFERROR(INDEX(January!$F$2:$F$1000,SMALL(IF(January!$C$2:$C$1000=$B$1,IF(January!$A$2:$A$1000>=$B$2,IF(January!$A$2:$A$1000<=$D$2,ROW($A$2:$A$1000)-ROW($A$2)+1))),ROWS($A$5:C10))),\"\")","v":""},{"$f":"IFERROR(INDEX(January!$K$2:$K$1000,SMALL(IF(January!$C$2:$C$1000=$B$1,IF(January!$A$2:$A$1000>=$B$2,IF(January!$A$2:$A$1000<=$D$2,ROW($A$2:$A$1000)-ROW($A$2)+1))),ROWS($A$5:D10))),\"\")","v":""}]
[{"$f":"IFERROR(INDEX(January!$A$2:$A$1000,SMALL(IF(January!$C$2:$C$1000=$B$1,IF(January!$A$2:$A$1000>=$B$2,IF(January!$A$2:$A$1000<=$D$2,ROW($A$2:$A$1000)-ROW($A$2)+1))),ROWS($A$5:A11))),\"\")","v":""},{"$f":"IFERROR(INDEX(January!$I$2:$I$1000,SMALL(IF(January!$C$2:$C$1000=$B$1,IF(January!$A$2:$A$1000>=$B$2,IF(January!$A$2:$A$1000<=$D$2,ROW($A$2:$A$1000)-ROW($A$2)+1))),ROWS($A$5:B11))),\"\")","v":""},{"$f":"IFERROR(INDEX(January!$F$2:$F$1000,SMALL(IF(January!$C$2:$C$1000=$B$1,IF(January!$A$2:$A$1000>=$B$2,IF(January!$A$2:$A$1000<=$D$2,ROW($A$2:$A$1000)-ROW($A$2)+1))),ROWS($A$5:C11))),\"\")","v":""},{"$f":"IFERROR(INDEX(January!$K$2:$K$1000,SMALL(IF(January!$C$2:$C$1000=$B$1,IF(January!$A$2:$A$1000>=$B$2,IF(January!$A$2:$A$1000<=$D$2,ROW($A$2:$A$1000)-ROW($A$2)+1))),ROWS($A$5:D11))),\"\")","v":""}]
[{"$f":"IFERROR(INDEX(January!$A$2:$A$1000,SMALL(IF(January!$C$2:$C$1000=$B$1,IF(January!$A$2:$A$1000>=$B$2,IF(January!$A$2:$A$1000<=$D$2,ROW($A$2:$A$1000)-ROW($A$2)+1))),ROWS($A$5:A12))),\"\")","v":""},{"$f":"IFERROR(INDEX(January!$I$2:$I$1000,SMALL(IF(January!$C$2:$C$1000=$B$1,IF(January!$A$2:$A$1000>=$B$2,IF(January!$A$2:$A$1000<=$D$2,ROW($A$2:$A$1000)-ROW($A$2)+1))),ROWS($A$5:B12))),\"\")","v":""},{"$f":"IFERROR(INDEX(January!$F$2:$F$1000,SMALL(IF(January!$C$2:$C$1000=$B$1,IF(January!$A$2:$A$1000>=$B$2,IF(January!$A$2:$A$1000<=$D$2,ROW($A$2:$A$1000)-ROW($A$2)+1))),ROWS($A$5:C12))),\"\")","v":""},{"$f":"IFERROR(INDEX(January!$K$2:$K$1000,SMALL(IF(January!$C$2:$C$1000=$B$1,IF(January!$A$2:$A$1000>=$B$2,IF(January!$A$2:$A$1000<=$D$2,ROW($A$2:$A$1000)-ROW($A$2)+1))),ROWS($A$5:D12))),\"\")","v":""}]
[{"$f":"IFERROR(INDEX(January!$A$2:$A$1000,SMALL(IF(January!$C$2:$C$1000=$B$1,IF(January!$A$2:$A$1000>=$B$2,IF(January!$A$2:$A$1000<=$D$2,ROW($A$2:$A$1000)-ROW($A$2)+1))),ROWS($A$5:A13))),\"\")","v":""},{"$f":"IFERROR(INDEX(January!$I$2:$I$1000,SMALL(IF(January!$C$2:$C$1000=$B$1,IF(January!$A$2:$A$1000>=$B$2,IF(January!$A$2:$A$1000<=$D$2,ROW($A$2:$A$1000)-ROW($A$2)+1))),ROWS($A$5:B13))),\"\")","v":""},{"$f":"IFERROR(INDEX(January!$F$2:$F$1000,SMALL(IF(January!$C$2:$C$1000=$B$1,IF(January!$A$2:$A$1000>=$B$2,IF(January!$A$2:$A$1000<=$D$2,ROW($A$2:$A$1000)-ROW($A$2)+1))),ROWS($A$5:C13))),\"\")","v":""},{"$f":"IFERROR(INDEX(January!$K$2:$K$1000,SMALL(IF(January!$C$2:$C$1000=$B$1,IF(January!$A$2:$A$1000>=$B$2,IF(January!$A$2:$A$1000<=$D$2,ROW($A$2:$A$1000)-ROW($A$2)+1))),ROWS($A$5:D13))),\"\")","v":""}]
[{"$f":"IFERROR(INDEX(January!$A$2:$A$1000,SMALL(IF(January!$C$2:$C$1000=$B$1,IF(January!$A$2:$A$1000>=$B$2,IF(January!$A$2:$A$1000<=$D$2,ROW($A$2:$A$1000)-ROW($A$2)+1))),ROWS($A$5:A14))),\"\")","v":""},{"$f":"IFERROR(INDEX(January!$I$2:$I$1000,SMALL(IF(January!$C$2:$C$1000=$B$1,IF(January!$A$2:$A$1000>=$B$2,IF(January!$A$2:$A$1000<=$D$2,ROW($A$2:$A$1000)-ROW($A$2)+1))),ROWS($A$5:B14))),\"\")","v":""},{"$f":"IFERROR(INDEX(January!$F$2:$F$1000,SMALL(IF(January!$C$2:$C$1000=$B$1,IF(January!$A$2:$A$1000>=$B$2,IF(January!$A$2:$A$1000<=$D$2,ROW($A$2:$A$1000)-ROW($A$2)+1))),ROWS($A$5:C14))),\"\")","v":""},{"$f":"IFERROR(INDEX(January!$K$2:$K$1000,SMALL(IF(January!$C$2:$C$1000=$B$1,IF(January!$A$2:$A$1000>=$B$2,IF(January!$A$2:$A$1000<=$D$2,ROW($A$2:$A$1000)-ROW($A$2)+1))),ROWS($A$5:D14))),\"\")","v":""}]
[{"$f":"IFERROR(INDEX(January!$A$2:$A$1000,SMALL(IF(January!$C$2:$C$1000=$B$1,IF(January!$A$2:$A$1000>=$B$2,IF(January!$A$2:$A$1000<=$D$2,ROW($A$2:$A$1000)-ROW($A$2)+1))),ROWS($A$5:A15))),\"\")","v":""},{"$f":"IFERROR(INDEX(January!$I$2:$I$1000,SMALL(IF(January!$C$2:$C$1000=$B$1,IF(January!$A$2:$A$1000>=$B$2,IF(January!$A$2:$A$1000<=$D$2,ROW($A$2:$A$1000)-ROW($A$2)+1))),ROWS($A$5:B15))),\"\")","v":""},{"$f":"IFERROR(INDEX(January!$F$2:$F$1000,SMALL(IF(January!$C$2:$C$1000=$B$1,IF(January!$A$2:$A$1000>=$B$2,IF(January!$A$2:$A$1000<=$D$2,ROW($A$2:$A$1000)-ROW($A$2)+1))),ROWS($A$5:C15))),\"\")","v":""},{"$f":"IFERROR(INDEX(January!$K$2:$K$1000,SMALL(IF(January!$C$2:$C$1000=$B$1,IF(January!$A$2:$A$1000>=$B$2,IF(January!$A$2:$A$1000<=$D$2,ROW($A$2:$A$1000)-ROW($A$2)+1))),ROWS($A$5:D15))),\"\")","v":""}]
[{"$f":"IFERROR(INDEX(January!$A$2:$A$1000,SMALL(IF(January!$C$2:$C$1000=$B$1,IF(January!$A$2:$A$1000>=$B$2,IF(January!$A$2:$A$1000<=$D$2,ROW($A$2:$A$1000)-ROW($A$2)+1))),ROWS($A$5:A16))),\"\")","v":""},{"$f":"IFERROR(INDEX(January!$I$2:$I$1000,SMALL(IF(January!$C$2:$C$1000=$B$1,IF(January!$A$2:$A$1000>=$B$2,IF(January!$A$2:$A$1000<=$D$2,ROW($A$2:$A$1000)-ROW($A$2)+1))),ROWS($A$5:B16))),\"\")","v":""},{"$f":"IFERROR(INDEX(January!$F$2:$F$1000,SMALL(IF(January!$C$2:$C$1000=$B$1,IF(January!$A$2:$A$1000>=$B$2,IF(January!$A$2:$A$1000<=$D$2,ROW($A$2:$A$1000)-ROW($A$2)+1))),ROWS($A$5:C16))),\"\")","v":""},{"$f":"IFERROR(INDEX(January!$K$2:$K$1000,SMALL(IF(January!$C$2:$C$1000=$B$1,IF(January!$A$2:$A$1000>=$B$2,IF(January!$A$2:$A$1000<=$D$2,ROW($A$2:$A$1000)-ROW($A$2)+1))),ROWS($A$5:D16))),\"\")","v":""}]
[{"$f":"IFERROR(INDEX(January!$A$2:$A$1000,SMALL(IF(January!$C$2:$C$1000=$B$1,IF(January!$A$2:$A$1000>=$B$2,IF(January!$A$2:$A$1000<=$D$2,ROW($A$2:$A$1000)-ROW($A$2)+1))),ROWS($A$5:A17))),\"\")","v":""},{"$f":"IFERROR(INDEX(January!$I$2:$I$1000,SMALL(IF(January!$C$2:$C$1000=$B$1,IF(January!$A$2:$A$1000>=$B$2,IF(January!$A$2:$A$1000<=$D$2,ROW($A$2:$A$1000)-ROW($A$2)+1))),ROWS($A$5:B17))),\"\")","v":""},{"$f":"IFERROR(INDEX(January!$F$2:$F$1000,SMALL(IF(January!$C$2:$C$1000=$B$1,IF(January!$A$2:$A$1000>=$B$2,IF(January!$A$2:$A$1000<=$D$2,ROW($A$2:$A$1000)-ROW($A$2)+1))),ROWS($A$5:C17))),\"\")","v":""},{"$f":"IFERROR(INDEX(January!$K$2:$K$1000,SMALL(IF(January!$C$2:$C$1000=$B$1,IF(January!$A$2:$A$1000>=$B$2,IF(January!$A$2:$A$1000<=$D$2,ROW($A$2:$A$1000)-ROW($A$2)+1))),ROWS($A$5:D17))),\"\")","v":""}]
[{"$f":"IFERROR(INDEX(January!$A$2:$A$1000,SMALL(IF(January!$C$2:$C$1000=$B$1,IF(January!$A$2:$A$1000>=$B$2,IF(January!$A$2:$A$1000<=$D$2,ROW($A$2:$A$1000)-ROW($A$2)+1))),ROWS($A$5:A18))),\"\")","v":""},{"$f":"IFERROR(INDEX(January!$I$2:$I$1000,SMALL(IF(January!$C$2:$C$1000=$B$1,IF(January!$A$2:$A$1000>=$B$2,IF(January!$A$2:$A$1000<=$D$2,ROW($A$2:$A$1000)-ROW($A$2)+1))),ROWS($A$5:B18))),\"\")","v":""},{"$f":"IFERROR(INDEX(January!$F$2:$F$1000,SMALL(IF(January!$C$2:$C$1000=$B$1,IF(January!$A$2:$A$1000>=$B$2,IF(January!$A$2:$A$1000<=$D$2,ROW($A$2:$A$1000)-ROW($A$2)+1))),ROWS($A$5:C18))),\"\")","v":""},{"$f":"IFERROR(INDEX(January!$K$2:$K$1000,SMALL(IF(January!$C$2:$C$1000=$B$1,IF(January!$A$2:$A$1000>=$B$2,IF(January!$A$2:$A$1000<=$D$2,ROW($A$2:$A$1000)-ROW($A$2)+1))),ROWS($A$5:D18))),\"\")","v":""}]
[{"$f":"IFERROR(INDEX(January!$A$2:$A$1000,SMALL(IF(January!$C$2:$C$1000=$B$1,IF(January!$A$2:$A$1000>=$B$2,IF(January!$A$2:$A$1000<=$D$2,ROW($A$2:$A$1000)-ROW($A$2)+1))),ROWS($A$5:A19))),\"\")","v":""},{"$f":"IFERROR(INDEX(January!$I$2:$I$1000,SMALL(IF(January!$C$2:$C$1000=$B$1,IF(January!$A$2:$A$1000>=$B$2,IF(January!$A$2:$A$1000<=$D$2,ROW($A$2:$A$1000)-ROW($A$2)+1))),ROWS($A$5:B19))),\"\")","v":""},{"$f":"IFERROR(INDEX(January!$F$2:$F$1000,SMALL(IF(January!$C$2:$C$1000=$B$1,IF(January!$A$2:$A$1000>=$B$2,IF(January!$A$2:$A$1000<=$D$2,ROW($A$2:$A$1000)-ROW($A$2)+1))),ROWS($A$5:C19))),\"\")","v":""},{"$f":"IFERROR(INDEX(January!$K$2:$K$1000,SMALL(IF(January!$C$2:$C$1000=$B$1,IF(January!$A$2:$A$1000>=$B$2,IF(January!$A$2:$A$1000<=$D$2,ROW($A$2:$A$1000)-ROW($A$2)+1))),ROWS($A$5:D19))),\"\")","v":""}]
[{"$f":"IFERROR(INDEX(January!$A$2:$A$1000,SMALL(IF(January!$C$2:$C$1000=$B$1,IF(January!$A$2:$A$1000>=$B$2,IF(January!$A$2:$A$1000<=$D$2,ROW($A$2:$A$1000)-ROW($A$2)+1))),ROWS($A$5:A20))),\"\")","v":""},{"$f":"IFERROR(INDEX(January!$I$2:$I$1000,SMALL(IF(January!$C$2:$C$1000=$B$1,IF(January!$A$2:$A$1000>=$B$2,IF(January!$A$2:$A$1000<=$D$2,ROW($A$2:$A$1000)-ROW($A$2)+1))),ROWS($A$5:B20))),\"\")","v":""},{"$f":"IFERROR(INDEX(January!$F$2:$F$1000,SMALL(IF(January!$C$2:$C$1000=$B$1,IF(January!$A$2:$A$1000>=$B$2,IF(January!$A$2:$A$1000<=$D$2,ROW($A$2:$A$1000)-ROW($A$2)+1))),ROWS($A$5:C20))),\"\")","v":""},{"$f":"IFERROR(INDEX(January!$K$2:$K$1000,SMALL(IF(January!$C$2:$C$1000=$B$1,IF(January!$A$2:$A$1000>=$B$2,IF(January!$A$2:$A$1000<=$D$2,ROW($A$2:$A$1000)-ROW($A$2)+1))),ROWS($A$5:D20))),\"\")","v":""}]
[{"$f":"IFERROR(INDEX(January!$A$2:$A$1000,SMALL(IF(January!$C$2:$C$1000=$B$1,IF(January!$A$2:$A$1000>=$B$2,IF(January!$A$2:$A$1000<=$D$2,ROW($A$2:$A$1000)-ROW($A$2)+1))),ROWS($A$5:A21))),\"\")","v":""},{"$f":"IFERROR(INDEX(January!$I$2:$I$1000,SMALL(IF(January!$C$2:$C$1000=$B$1,IF(January!$A$2:$A$1000>=$B$2,IF(January!$A$2:$A$1000<=$D$2,ROW($A$2:$A$1000)-ROW($A$2)+1))),ROWS($A$5:B21))),\"\")","v":""},{"$f":"IFERROR(INDEX(January!$F$2:$F$1000,SMALL(IF(January!$C$2:$C$1000=$B$1,IF(January!$A$2:$A$1000>=$B$2,IF(January!$A$2:$A$1000<=$D$2,ROW($A$2:$A$1000)-ROW($A$2)+1))),ROWS($A$5:C21))),\"\")","v":""},{"$f":"IFERROR(INDEX(January!$K$2:$K$1000,SMALL(IF(January!$C$2:$C$1000=$B$1,IF(January!$A$2:$A$1000>=$B$2,IF(January!$A$2:$A$1000<=$D$2,ROW($A$2:$A$1000)-ROW($A$2)+1))),ROWS($A$5:D21))),\"\")","v":""}]
[{"$f":"IFERROR(INDEX(January!$A$2:$A$1000,SMALL(IF(January!$C$2:$C$1000=$B$1,IF(January!$A$2:$A$1000>=$B$2,IF(January!$A$2:$A$1000<=$D$2,ROW($A$2:$A$1000)-ROW($A$2)+1))),ROWS($A$5:A22))),\"\")","v":""},{"$f":"IFERROR(INDEX(January!$I$2:$I$1000,SMALL(IF(January!$C$2:$C$1000=$B$1,IF(January!$A$2:$A$1000>=$B$2,IF(January!$A$2:$A$1000<=$D$2,ROW($A$2:$A$1000)-ROW($A$2)+1))),ROWS($A$5:B22))),\"\")","v":""},{"$f":"IFERROR(INDEX(January!$F$2:$F$1000,SMALL(IF(January!$C$2:$C$1000=$B$1,IF(January!$A$2:$A$1000>=$B$2,IF(January!$A$2:$A$1000<=$D$2,ROW($A$2:$A$1000)-ROW($A$2)+1))),ROWS($A$5:C22))),\"\")","v":""},{"$f":"IFERROR(INDEX(January!$K$2:$K$1000,SMALL(IF(January!$C$2:$C$1000=$B$1,IF(January!$A$2:$A$1000>=$B$2,IF(January!$A$2:$A$1000<=$D$2,ROW($A$2:$A$1000)-ROW($A$2)+1))),ROWS($A$5:D22))),\"\")","v":""}]
[{"$f":"IFERROR(INDEX(January!$A$2:$A$1000,SMALL(IF(January!$C$2:$C$1000=$B$1,IF(January!$A$2:$A$1000>=$B$2,IF(January!$A$2:$A$1000<=$D$2,ROW($A$2:$A$1000)-ROW($A$2)+1))),ROWS($A$5:A23))),\"\")","v":""},{"$f":"IFERROR(INDEX(January!$I$2:$I$1000,SMALL(IF(January!$C$2:$C$1000=$B$1,IF(January!$A$2:$A$1000>=$B$2,IF(January!$A$2:$A$1000<=$D$2,ROW($A$2:$A$1000)-ROW($A$2)+1))),ROWS($A$5:B23))),\"\")","v":""},{"$f":"IFERROR(INDEX(January!$F$2:$F$1000,SMALL(IF(January!$C$2:$C$1000=$B$1,IF(January!$A$2:$A$1000>=$B$2,IF(January!$A$2:$A$1000<=$D$2,ROW($A$2:$A$1000)-ROW($A$2)+1))),ROWS($A$5:C23))),\"\")","v":""},{"$f":"IFERROR(INDEX(January!$K$2:$K$1000,SMALL(IF(January!$C$2:$C$1000=$B$1,IF(January!$A$2:$A$1000>=$B$2,IF(January!$A$2:$A$1000<=$D$2,ROW($A$2:$A$1000)-ROW($A$2)+1))),ROWS($A$5:D23))),\"\")","v":""}]
[{"$f":"IFERROR(INDEX(January!$A$2:$A$1000,SMALL(IF(January!$C$2:$C$1000=$B$1,IF(January!$A$2:$A$1000>=$B$2,IF(January!$A$2:$A$1000<=$D$2,ROW($A$2:$A$1000)-ROW($A$2)+1))),ROWS($A$5:A24))),\"\")","v":""},{"$f":"IFERROR(INDEX(January!$I$2:$I$1000,SMALL(IF(January!$C$2:$C$1000=$B$1,IF(January!$A$2:$A$1000>=$B$2,IF(January!$A$2:$A$1000<=$D$2,ROW($A$2:$A$1000)-ROW($A$2)+1))),ROWS($A$5:B24))),\"\")","v":""},{"$f":"IFERROR(INDEX(January!$F$2:$F$1000,SMALL(IF(January!$C$2:$C$1000=$B$1,IF(January!$A$2:$A$1000>=$B$2,IF(January!$A$2:$A$1000<=$D$2,ROW($A$2:$A$1000)-ROW($A$2)+1))),ROWS($A$5:C24))),\"\")","v":""},{"$f":"IFERROR(INDEX(January!$K$2:$K$1000,SMALL(IF(January!$C$2:$C$1000=$B$1,IF(January!$A$2:$A$1000>=$B$2,IF(January!$A$2:$A$1000<=$D$2,ROW($A$2:$A$1000)-ROW($A$2)+1))),ROWS($A$5:D24))),\"\")","v":""}]
[{"$f":"IFERROR(INDEX(January!$A$2:$A$1000,SMALL(IF(January!$C$2:$C$1000=$B$1,IF(January!$A$2:$A$1000>=$B$2,IF(January!$A$2:$A$1000<=$D$2,ROW($A$2:$A$1000)-ROW($A$2)+1))),ROWS($A$5:A25))),\"\")","v":""},{"$f":"IFERROR(INDEX(January!$I$2:$I$1000,SMALL(IF(January!$C$2:$C$1000=$B$1,IF(January!$A$2:$A$1000>=$B$2,IF(January!$A$2:$A$1000<=$D$2,ROW($A$2:$A$1000)-ROW($A$2)+1))),ROWS($A$5:B25))),\"\")","v":""},{"$f":"IFERROR(INDEX(January!$F$2:$F$1000,SMALL(IF(January!$C$2:$C$1000=$B$1,IF(January!$A$2:$A$1000>=$B$2,IF(January!$A$2:$A$1000<=$D$2,ROW($A$2:$A$1000)-ROW($A$2)+1))),ROWS($A$5:C25))),\"\")","v":""},{"$f":"IFERROR(INDEX(January!$K$2:$K$1000,SMALL(IF(January!$C$2:$C$1000=$B$1,IF(January!$A$2:$A$1000>=$B$2,IF(January!$A$2:$A$1000<=$D$2,ROW($A$2:$A$1000)-ROW($A$2)+1))),ROWS($A$5:D25))),\"\")","v":""}]
[{"$f":"IFERROR(INDEX(January!$A$2:$A$1000,SMALL(IF(January!$C$2:$C$1000=$B$1,IF(January!$A$2:$A$1000>=$B$2,IF(January!$A$2:$A$1000<=$D$2,ROW($A$2:$A$1000)-ROW($A$2)+1))),ROWS($A$5:A26))),\"\")","v":""},{"$f":"IFERROR(INDEX(January!$I$2:$I$1000,SMALL(IF(January!$C$2:$C$1000=$B$1,IF(January!$A$2:$A$1000>=$B$2,IF(January!$A$2:$A$1000<=$D$2,ROW($A$2:$A$1000)-ROW($A$2)+1))),ROWS($A$5:B26))),\"\")","v":""},{"$f":"IFERROR(INDEX(January!$F$2:$F$1000,SMALL(IF(January!$C$2:$C$1000=$B$1,IF(January!$A$2:$A$1000>=$B$2,IF(January!$A$2:$A$1000<=$D$2,ROW($A$2:$A$1000)-ROW($A$2)+1))),ROWS($A$5:C26))),\"\")","v":""},{"$f":"IFERROR(INDEX(January!$K$2:$K$1000,SMALL(IF(January!$C$2:$C$1000=$B$1,IF(January!$A$2:$A$1000>=$B$2,IF(January!$A$2:$A$1000<=$D$2,ROW($A$2:$A$1000)-ROW($A$2)+1))),ROWS($A$5:D26))),\"\")","v":""}]
[{"$f":"IFERROR(INDEX(January!$A$2:$A$1000,SMALL(IF(January!$C$2:$C$1000=$B$1,IF(January!$A$2:$A$1000>=$B$2,IF(January!$A$2:$A$1000<=$D$2,ROW($A$2:$A$1000)-ROW($A$2)+1))),ROWS($A$5:A27))),\"\")","v":""},{"$f":"IFERROR(INDEX(January!$I$2:$I$1000,SMALL(IF(January!$C$2:$C$1000=$B$1,IF(January!$A$2:$A$1000>=$B$2,IF(January!$A$2:$A$1000<=$D$2,ROW($A$2:$A$1000)-ROW($A$2)+1))),ROWS($A$5:B27))),\"\")","v":""},{"$f":"IFERROR(INDEX(January!$F$2:$F$1000,SMALL(IF(January!$C$2:$C$1000=$B$1,IF(January!$A$2:$A$1000>=$B$2,IF(January!$A$2:$A$1000<=$D$2,ROW($A$2:$A$1000)-ROW($A$2)+1))),ROWS($A$5:C27))),\"\")","v":""},{"$f":"IFERROR(INDEX(January!$K$2:$K$1000,SMALL(IF(January!$C$2:$C$1000=$B$1,IF(January!$A$2:$A$1000>=$B$2,IF(January!$A$2:$A$1000<=$D$2,ROW($A$2:$A$1000)-ROW($A$2)+1))),ROWS($A$5:D27))),\"\")","v":""}]
[{"$f":"IFERROR(INDEX(January!$A$2:$A$1000,SMALL(IF(January!$C$2:$C$1000=$B$1,IF(January!$A$2:$A$1000>=$B$2,IF(January!$A$2:$A$1000<=$D$2,ROW($A$2:$A$1000)-ROW($A$2)+1))),ROWS($A$5:A28))),\"\")","v":""},{"$f":"IFERROR(INDEX(January!$I$2:$I$1000,SMALL(IF(January!$C$2:$C$1000=$B$1,IF(January!$A$2:$A$1000>=$B$2,IF(January!$A$2:$A$1000<=$D$2,ROW($A$2:$A$1000)-ROW($A$2)+1))),ROWS($A$5:B28))),\"\")","v":""},{"$f":"IFERROR(INDEX(January!$F$2:$F$1000,SMALL(IF(January!$C$2:$C$1000=$B$1,IF(January!$A$2:$A$1000>=$B$2,IF(January!$A$2:$A$1000<=$D$2,ROW($A$2:$A$1000)-ROW($A$2)+1))),ROWS($A$5:C28))),\"\")","v":""},{"$f":"IFERROR(INDEX(January!$K$2:$K$1000,SMALL(IF(January!$C$2:$C$1000=$B$1,IF(January!$A$2:$A$1000>=$B$2,IF(January!$A$2:$A$1000<=$D$2,ROW($A$2:$A$1000)-ROW($A$2)+1))),ROWS($A$5:D28))),\"\")","v":""}]
[{"$f":"IFERROR(INDEX(January!$A$2:$A$1000,SMALL(IF(January!$C$2:$C$1000=$B$1,IF(January!$A$2:$A$1000>=$B$2,IF(January!$A$2:$A$1000<=$D$2,ROW($A$2:$A$1000)-ROW($A$2)+1))),ROWS($A$5:A29))),\"\")","v":""},{"$f":"IFERROR(INDEX(January!$I$2:$I$1000,SMALL(IF(January!$C$2:$C$1000=$B$1,IF(January!$A$2:$A$1000>=$B$2,IF(January!$A$2:$A$1000<=$D$2,ROW($A$2:$A$1000)-ROW($A$2)+1))),ROWS($A$5:B29))),\"\")","v":""},{"$f":"IFERROR(INDEX(January!$F$2:$F$1000,SMALL(IF(January!$C$2:$C$1000=$B$1,IF(January!$A$2:$A$1000>=$B$2,IF(January!$A$2:$A$1000<=$D$2,ROW($A$2:$A$1000)-ROW($A$2)+1))),ROWS($A$5:C29))),\"\")","v":""},{"$f":"IFERROR(INDEX(January!$K$2:$K$1000,SMALL(IF(January!$C$2:$C$1000=$B$1,IF(January!$A$2:$A$1000>=$B$2,IF(January!$A$2:$A$1000<=$D$2,ROW($A$2:$A$1000)-ROW($A$2)+1))),ROWS($A$5:D29))),\"\")","v":""}]
[{"$f":"IFERROR(INDEX(January!$A$2:$A$1000,SMALL(IF(January!$C$2:$C$1000=$B$1,IF(January!$A$2:$A$1000>=$B$2,IF(January!$A$2:$A$1000<=$D$2,ROW($A$2:$A$1000)-ROW($A$2)+1))),ROWS($A$5:A30))),\"\")","v":""},{"$f":"IFERROR(INDEX(January!$I$2:$I$1000,SMALL(IF(January!$C$2:$C$1000=$B$1,IF(January!$A$2:$A$1000>=$B$2,IF(January!$A$2:$A$1000<=$D$2,ROW($A$2:$A$1000)-ROW($A$2)+1))),ROWS($A$5:B30))),\"\")","v":""},{"$f":"IFERROR(INDEX(January!$F$2:$F$1000,SMALL(IF(January!$C$2:$C$1000=$B$1,IF(January!$A$2:$A$1000>=$B$2,IF(January!$A$2:$A$1000<=$D$2,ROW($A$2:$A$1000)-ROW($A$2)+1))),ROWS($A$5:C30))),\"\")","v":""},{"$f":"IFERROR(INDEX(January!$K$2:$K$1000,SMALL(IF(January!$C$2:$C$1000=$B$1,IF(January!$A$2:$A$1000>=$B$2,IF(January!$A$2:$A$1000<=$D$2,ROW($A$2:$A$1000)-ROW($A$2)+1))),ROWS($A$5:D30))),\"\")","v":""}]
[{"$f":"IFERROR(INDEX(January!$A$2:$A$1000,SMALL(IF(January!$C$2:$C$1000=$B$1,IF(January!$A$2:$A$1000>=$B$2,IF(January!$A$2:$A$1000<=$D$2,ROW($A$2:$A$1000)-ROW($A$2)+1))),ROWS($A$5:A31))),\"\")","v":""},{"$f":"IFERROR(INDEX(January!$I$2:$I$1000,SMALL(IF(January!$C$2:$C$1000=$B$1,IF(January!$A$2:$A$1000>=$B$2,IF(January!$A$2:$A$1000<=$D$2,ROW($A$2:$A$1000)-ROW($A$2)+1))),ROWS($A$5:B31))),\"\")","v":""},{"$f":"IFERROR(INDEX(January!$F$2:$F$1000,SMALL(IF(January!$C$2:$C$1000=$B$1,IF(January!$A$2:$A$1000>=$B$2,IF(January!$A$2:$A$1000<=$D$2,ROW($A$2:$A$1000)-ROW($A$2)+1))),ROWS($A$5:C31))),\"\")","v":""},{"$f":"IFERROR(INDEX(January!$K$2:$K$1000,SMALL(IF(January!$C$2:$C$1000=$B$1,IF(January!$A$2:$A$1000>=$B$2,IF(January!$A$2:$A$1000<=$D$2,ROW($A$2:$A$1000)-ROW($A$2)+1))),ROWS($A$5:D31))),\"\")","v":""}]
[{"$f":"IFERROR(INDEX(January!$A$2:$A$1000,SMALL(IF(January!$C$2:$C$1000=$B$1,IF(January!$A$2:$A$1000>=$B$2,IF(January!$A$2:$A$1000<=$D$2,ROW($A$2:$A$1000)-ROW($A$2)+1))),ROWS($A$5:A32))),\"\")","v":""},{"$f":"IFERROR(INDEX(January!$I$2:$I$1000,SMALL(IF(January!$C$2:$C$1000=$B$1,IF(January!$A$2:$A$1000>=$B$2,IF(January!$A$2:$A$1000<=$D$2,ROW($A$2:$A$1000)-ROW($A$2)+1))),ROWS($A$5:B32))),\"\")","v":""},{"$f":"IFERROR(INDEX(January!$F$2:$F$1000,SMALL(IF(January!$C$2:$C$1000=$B$1,IF(January!$A$2:$A$1000>=$B$2,IF(January!$A$2:$A$1000<=$D$2,ROW($A$2:$A$1000)-ROW($A$2)+1))),ROWS($A$5:C32))),\"\")","v":""},{"$f":"IFERROR(INDEX(January!$K$2:$K$1000,SMALL(IF(January!$C$2:$C$1000=$B$1,IF(January!$A$2:$A$1000>=$B$2,IF(January!$A$2:$A$1000<=$D$2,ROW($A$2:$A$1000)-ROW($A$2)+1))),ROWS($A$5:D32))),\"\")","v":""}]
[{"$f":"IFERROR(INDEX(January!$A$2:$A$1000,SMALL(IF(January!$C$2:$C$1000=$B$1,IF(January!$A$2:$A$1000>=$B$2,IF(January!$A$2:$A$1000<=$D$2,ROW($A$2:$A$1000)-ROW($A$2)+1))),ROWS($A$5:A33))),\"\")","v":""},{"$f":"IFERROR(INDEX(January!$I$2:$I$1000,SMALL(IF(January!$C$2:$C$1000=$B$1,IF(January!$A$2:$A$1000>=$B$2,IF(January!$A$2:$A$1000<=$D$2,ROW($A$2:$A$1000)-ROW($A$2)+1))),ROWS($A$5:B33))),\"\")","v":""},{"$f":"IFERROR(INDEX(January!$F$2:$F$1000,SMALL(IF(January!$C$2:$C$1000=$B$1,IF(January!$A$2:$A$1000>=$B$2,IF(January!$A$2:$A$1000<=$D$2,ROW($A$2:$A$1000)-ROW($A$2)+1))),ROWS($A$5:C33))),\"\")","v":""},{"$f":"IFERROR(INDEX(January!$K$2:$K$1000,SMALL(IF(January!$C$2:$C$1000=$B$1,IF(January!$A$2:$A$1000>=$B$2,IF(January!$A$2:$A$1000<=$D$2,ROW($A$2:$A$1000)-ROW($A$2)+1))),ROWS($A$5:D33))),\"\")","v":""}]
[{"$f":"IFERROR(INDEX(January!$A$2:$A$1000,SMALL(IF(January!$C$2:$C$1000=$B$1,IF(January!$A$2:$A$1000>=$B$2,IF(January!$A$2:$A$1000<=$D$2,ROW($A$2:$A$1000)-ROW($A$2)+1))),ROWS($A$5:A34))),\"\")","v":""},{"$f":"IFERROR(INDEX(January!$I$2:$I$1000,SMALL(IF(January!$C$2:$C$1000=$B$1,IF(January!$A$2:$A$1000>=$B$2,IF(January!$A$2:$A$1000<=$D$2,ROW($A$2:$A$1000)-ROW($A$2)+1))),ROWS($A$5:B34))),\"\")","v":""},{"$f":"IFERROR(INDEX(January!$F$2:$F$1000,SMALL(IF(January!$C$2:$C$1000=$B$1,IF(January!$A$2:$A$1000>=$B$2,IF(January!$A$2:$A$1000<=$D$2,ROW($A$2:$A$1000)-ROW($A$2)+1))),ROWS($A$5:C34))),\"\")","v":""},{"$f":"IFERROR(INDEX(January!$K$2:$K$1000,SMALL(IF(January!$C$2:$C$1000=$B$1,IF(January!$A$2:$A$1000>=$B$2,IF(January!$A$2:$A$1000<=$D$2,ROW($A$2:$A$1000)-ROW($A$2)+1))),ROWS($A$5:D34))),\"\")","v":""}]
[{"$f":"IFERROR(INDEX(January!$A$2:$A$1000,SMALL(IF(January!$C$2:$C$1000=$B$1,IF(January!$A$2:$A$1000>=$B$2,IF(January!$A$2:$A$1000<=$D$2,ROW($A$2:$A$1000)-ROW($A$2)+1))),ROWS($A$5:A35))),\"\")","v":""},{"$f":"IFERROR(INDEX(January!$I$2:$I$1000,SMALL(IF(January!$C$2:$C$1000=$B$1,IF(January!$A$2:$A$1000>=$B$2,IF(January!$A$2:$A$1000<=$D$2,ROW($A$2:$A$1000)-ROW($A$2)+1))),ROWS($A$5:B35))),\"\")","v":""},{"$f":"IFERROR(INDEX(January!$F$2:$F$1000,SMALL(IF(January!$C$2:$C$1000=$B$1,IF(January!$A$2:$A$1000>=$B$2,IF(January!$A$2:$A$1000<=$D$2,ROW($A$2:$A$1000)-ROW($A$2)+1))),ROWS($A$5:C35))),\"\")","v":""},{"$f":"IFERROR(INDEX(January!$K$2:$K$1000,SMALL(IF(January!$C$2:$C$1000=$B$1,IF(January!$A$2:$A$1000>=$B$2,IF(January!$A$2:$A$1000<=$D$2,ROW($A$2:$A$1000)-ROW($A$2)+1))),ROWS($A$5:D35))),\"\")","v":""}]
[{"$f":"IFERROR(INDEX(January!$A$2:$A$1000,SMALL(IF(January!$C$2:$C$1000=$B$1,IF(January!$A$2:$A$1000>=$B$2,IF(January!$A$2:$A$1000<=$D$2,ROW($A$2:$A$1000)-ROW($A$2)+1))),ROWS($A$5:A36))),\"\")","v":""},{"$f":"IFERROR(INDEX(January!$I$2:$I$1000,SMALL(IF(January!$C$2:$C$1000=$B$1,IF(January!$A$2:$A$1000>=$B$2,IF(January!$A$2:$A$1000<=$D$2,ROW($A$2:$A$1000)-ROW($A$2)+1))),ROWS($A$5:B36))),\"\")","v":""},{"$f":"IFERROR(INDEX(January!$F$2:$F$1000,SMALL(IF(January!$C$2:$C$1000=$B$1,IF(January!$A$2:$A$1000>=$B$2,IF(January!$A$2:$A$1000<=$D$2,ROW($A$2:$A$1000)-ROW($A$2)+1))),ROWS($A$5:C36))),\"\")","v":""},{"$f":"IFERROR(INDEX(January!$K$2:$K$1000,SMALL(IF(January!$C$2:$C$1000=$B$1,IF(January!$A$2:$A$1000>=$B$2,IF(January!$A$2:$A$1000<=$D$2,ROW($A$2:$A$1000)-ROW($A$2)+1))),ROWS($A$5:D36))),\"\")","v":""}]
[{"$f":"IFERROR(INDEX(January!$A$2:$A$1000,SMALL(IF(January!$C$2:$C$1000=$B$1,IF(January!$A$2:$A$1000>=$B$2,IF(January!$A$2:$A$1000<=$D$2,ROW($A$2:$A$1000)-ROW($A$2)+1))),ROWS($A$5:A37))),\"\")","v":""},{"$f":"IFERROR(INDEX(January!$I$2:$I$1000,SMALL(IF(January!$C$2:$C$1000=$B$1,IF(January!$A$2:$A$1000>=$B$2,IF(January!$A$2:$A$1000<=$D$2,ROW($A$2:$A$1000)-ROW($A$2)+1))),ROWS($A$5:B37))),\"\")","v":""},{"$f":"IFERROR(INDEX(January!$F$2:$F$1000,SMALL(IF(January!$C$2:$C$1000=$B$1,IF(January!$A$2:$A$1000>=$B$2,IF(January!$A$2:$A$1000<=$D$2,ROW($A$2:$A$1000)-ROW($A$2)+1))),ROWS($A$5:C37))),\"\")","v":""},{"$f":"IFERROR(INDEX(January!$K$2:$K$1000,SMALL(IF(January!$C$2:$C$1000=$B$1,IF(January!$A$2:$A$1000>=$B$2,IF(January!$A$2:$A$1000<=$D$2,ROW($A$2:$A$1000)-ROW($A$2)+1))),ROWS($A$5:D37))),\"\")","v":""}]
[{"$f":"IFERROR(INDEX(January!$A$2:$A$1000,SMALL(IF(January!$C$2:$C$1000=$B$1,IF(January!$A$2:$A$1000>=$B$2,IF(January!$A$2:$A$1000<=$D$2,ROW($A$2:$A$1000)-ROW($A$2)+1))),ROWS($A$5:A38))),\"\")","v":""},{"$f":"IFERROR(INDEX(January!$I$2:$I$1000,SMALL(IF(January!$C$2:$C$1000=$B$1,IF(January!$A$2:$A$1000>=$B$2,IF(January!$A$2:$A$1000<=$D$2,ROW($A$2:$A$1000)-ROW($A$2)+1))),ROWS($A$5:B38))),\"\")","v":""},{"$f":"IFERROR(INDEX(January!$F$2:$F$1000,SMALL(IF(January!$C$2:$C$1000=$B$1,IF(January!$A$2:$A$1000>=$B$2,IF(January!$A$2:$A$1000<=$D$2,ROW($A$2:$A$1000)-ROW($A$2)+1))),ROWS($A$5:C38))),\"\")","v":""},{"$f":"IFERROR(INDEX(January!$K$2:$K$1000,SMALL(IF(January!$C$2:$C$1000=$B$1,IF(January!$A$2:$A$1000>=$B$2,IF(January!$A$2:$A$1000<=$D$2,ROW($A$2:$A$1000)-ROW($A$2)+1))),ROWS($A$5:D38))),\"\")","v":""}]